Cogmind - Beta 16.1 @@@ ROGUE MODE // 2026.01.16 @ 15:11:40 Player: H3-MLN Result: Destroyed by P-80 Master with Gamma Rifle Performance ------------- Evolutions (8) 4000 Regions Visited (31) 6200 Robots Destroyed (388) 1940 Value Destroyed (24333) 24333 Prototype IDs (96) 1920 Alien Tech Used (2) 400 Bonus (19513) 19513 TOTAL SCORE: 58306 Bonus ------- High Alert Combat Kills 4613 Follower Combat Kills 6372 Hunted by Unchained 1000 Destroyed Unchained 2000 Entered Garrisons 1800 Used RIF Installer 4000 Friendly Fire -272 Cogmind --------- Core Integrity 0/1450 Matter 173/300 Energy 100/100 System Corruption 9% Temperature Cool (0) Movement Core (300) Ox5 Location -2/Research Parts ------- > --- POWER (2) -------- (None) > --- PROPULSION (6) --- (None) > --- UTILITY (13) ----- Experimental Optical Array Experimental Core Analyzer ID Mask Graphene Brace (fused) Blink Core Blink Core > --- WEAPON (2) ------- (None) > --- INVENTORY (5) ---- Experimental Sensor Array Advanced Trap Extractor (3/8 Segregator) Guided Micro-nuke Launcher Segregator Peak State ------------ > --- POWER ------------ Graviton Reactor Quantum Reactor > --- PROPULSION ------- Myomer Leg Enhanced Multireflex Exoskeleton Centrium Leg Heavy Shield Leg > --- UTILITY ---------- Advanced Coolant Injector High-capacity Storage Unit Experimental Optical Array Experimental Sensor Array Experimental Signal Interpreter Experimental Targeting Computer Experimental Core Analyzer Centrium Heavy Armor Plating Relay Coupler [NC] Relay Coupler [Sentry] Blink Core Blink Core > --- WEAPON ----------- Sigix Terminator > --- INVENTORY -------- Graviton Reactor Advanced Matter Compressor Structural Scanner Layered Heavy Armor Plating Improved Powered Armor Advanced Hacking Suite Advanced Trap Extractor Dimensional Node Initializer High-powered Transdimensional Reconstructor Heavy Hardcell Cannon Graviton Cannon Ragnarok Missile Launcher Guided Micro-nuke Launcher Advanced Remote Datajack CPS Tube [Rating: 210] Favorites ----------- Power Light Nuclear Core Engine Cooled Ion Engine Power Core Light Nuclear Core Reactor Improved Quantum Reactor Propulsion Combat Linear Gravjet Treads Improved Treads Leg Myomer Leg Wheel Armored Wheel Hover Unit Combat Linear Gravjet Flight Unit Cooled Cesium-ion Thruster Utility Experimental Targeting Computer Device Gravity Neutralizer Storage High-capacity Storage Unit Processor Experimental Targeting Computer Hackware Hacking Suite Protection Improved Light Armor Plating Weapon Improved Remote Datajack Energy Gun Medium Laser Energy Cannon Enhanced Nova Cannon Ballistic Gun Helical Railgun Ballistic Cannon Assault Cannon Launcher Grenade Launcher Special Weapon Improved Remote Datajack Impact Weapon Heavy Mace Slashing Weapon Chainsword Piercing Weapon Lance Special Melee Weapon Improved Datajack Build | -11 -10 -10 -9 -9 -9 -9 -9 -6 -6 -6 -6 -6 -6 -5 -5 -5 -5 -4 -4 -4 -4 -4 -4 -4 -4 -3 -3 -3 -3 -3 -2 ------- Run | Yrd Mat Min Mat Sto Gar Rec Scr Fac Was Fac Gar Fac Gar Fac Was Fac Gar Fac Was Fac Gar Fac Gar Fac Gar Res Gar Res Qua Gar Res Slots Evolved 16 | . . . 2 . . . . 6 . . . . . 2 . . . 2 . . . . . . . 2 . . . . 2 Power 1 | . . . . . . . . 1 . . . . . . . . . . . . . . . . . . . . . . . Propulsion 4 | . . . 1 . . . . 2 . . . . . . . . . . . . . . . . . . . . . . 1 Utility 11 | . . . 1 . . . . 3 . . . . . 2 . . . 2 . . . . . . . 2 . . . . 1 Weapon . | . . . . . . . . . . . . . . . . . . . . . . . . . . . . . . . . Parts Attached 438 | 7 7 4 19 9 10 3 5 24 2 16 7 3 31 17 2 6 27 13 . 3 19 7 21 3 41 14 17 12 15 17 57 Power 65 | 1 . 2 3 3 . . . 4 . 5 1 2 8 2 . 1 4 . . . 2 1 5 1 4 1 6 1 . 1 7 Engine 19 | 1 . . 3 3 . . . 2 . 4 . 2 3 1 . . . . . . . . . . . . . . . . . Core 24 | . . 2 . . . . . 2 . 1 1 . 5 . . 1 3 . . . 1 1 3 1 3 . . . . . . Reactor 22 | . . . . . . . . . . . . . . 1 . . 1 . . . 1 . 2 . 1 1 6 1 . 1 7 Propulsion 88 | 2 3 1 6 . 1 . 3 5 . 5 . 1 2 6 . 1 2 2 . 1 2 2 2 1 16 5 . 1 1 2 15 Treads 10 | 1 . . 3 . 1 . . 1 . . . 1 . . . . . . . . . . . . 3 . . . . . . Leg 23 | . . . . . . . 1 . . . . . . . . . . . . . . . . . 5 2 . . 1 . 14 Wheel 11 | 1 3 1 2 . . . . 4 . . . . . . . . . . . . . . . . . . . . . . . Hover 31 | . . . . . . . 1 . . . . . . 5 . 1 2 2 . 1 2 2 2 . 6 3 . 1 . 2 1 Flight 13 | . . . 1 . . . 1 . . 5 . . 2 1 . . . . . . . . . 1 2 . . . . . . Utility 209 | 2 2 . 2 2 5 2 1 10 2 6 5 . 20 7 1 4 17 8 . 2 10 3 14 1 12 7 11 10 11 9 23 Device 68 | 1 . . . 1 . 1 . 4 . 3 2 . 1 2 . 2 5 4 . . 2 . 4 . 4 5 1 7 5 3 11 Storage 14 | 1 1 . 1 . 1 . 1 . . 1 . . . 1 . . . 1 . . . 1 . . 1 . . . . 3 1 Processor 17 | . . . . . . . . 2 . 1 . . . 1 . 1 4 . . . . 1 . . . . 1 1 1 1 3 Hackware 88 | . . . . . 3 . . 4 1 1 2 . 16 3 1 1 8 3 . 2 8 1 10 1 5 1 9 1 2 2 3 Protection 22 | . 1 . 1 1 1 1 . . 1 . 1 . 3 . . . . . . . . . . . 2 1 . 1 3 . 5 Artifact . | . . . . . . . . . . . . . . . . . . . . . . . . . . . . . . . . Weapon 76 | 2 2 1 8 4 4 1 1 5 . . 1 . 1 2 1 . 4 3 . . 5 1 . . 9 1 . . 3 5 12 Energy Gun 6 | 1 . . . 2 . . . 1 . . . . . . . . 1 . . . . . . . . . . . 1 . . Energy Cannon 9 | . . . 2 1 . . . . . . . . . . . . 1 . . . 1 . . . 2 . . . . 1 1 Ballistic Gun 13 | 1 . . 3 . 1 . . 2 . . . . . . . . 2 . . . 1 . . . 2 . . . 1 . . Ballistic Cannon 8 | . . . 1 . . . . . . . . . . . 1 . . . . . 1 . . . 1 . . . . 1 3 Launcher 15 | . 1 1 1 1 2 . . 1 . . 1 . . . . . . 2 . . . . . . . . . . . 2 3 Special Weapon 12 | . 1 . . . 1 . . . . . . . 1 2 . . . . . . 2 . . . 1 1 . . 1 . 2 Impact Weapon 3 | . . . . . . 1 1 . . . . . . . . . . 1 . . . . . . . . . . . . . Slashing Weapon 6 | . . . . . . . . 1 . . . . . . . . . . . . . . . . 2 . . . . 1 2 Piercing Weapon 1 | . . . . . . . . . . . . . . . . . . . . . . . . . . . . . . . 1 Special Melee Weapon 3 | . . . 1 . . . . . . . . . . . . . . . . . . 1 . . 1 . . . . . . Unidentified Prototypes 40 | . . . 4 3 . . . . . . 1 . . 4 1 . 3 . . . . 1 . 1 1 1 . 3 5 6 6 Corrupted Parts 3 | . . . . . . . . 1 . . . . . . . . 1 1 . . . . . . . . . . . . . System Corruption 7 | . . . . . . . . 1 . . . . . . . . 2 4 . . . . . . . . . . . . . Parts Lost 97 | . . 2 . . . 1 . 6 . 2 1 2 7 3 . . 3 . . . 2 4 5 . 9 . 5 2 4 6 33 Power 30 | . . 1 . . . . . 2 . 2 1 2 3 1 . . 2 . . . 1 . 2 . 2 . 3 . 2 1 5 Propulsion 29 | . . 1 . . . 1 . 2 . . . . 2 1 . . . . . . 1 2 1 . 4 . 1 . 1 2 10 Utility 31 | . . . . . . . . 2 . . . . 2 1 . . 1 . . . . 2 1 . 3 . 1 2 1 2 13 Weapon 7 | . . . . . . . . . . . . . . . . . . . . . . . 1 . . . . . . 1 5 Highest Loss Streak 16 | . . 1 . . . 1 . 3 . 2 1 2 3 2 . . 1 . . . 1 2 2 . 3 . 2 2 2 3 16 To Critical Strikes . | . . . . . . . . . . . . . . . . . . . . . . . . . . . . . . . . Average Backups 17 | 4 9 12 12 22 22 19 19 21 22 15 14 14 14 14 14 12 12 15 18 18 17 18 18 18 18 17 18 18 18 18 16 Power . | . 1 1 . . . . . . . . . . . . 1 1 1 1 1 1 1 1 1 1 1 1 1 1 . 1 . Propulsion 2 | 2 2 3 4 6 4 3 4 6 7 3 1 1 . . 1 2 1 2 4 3 1 1 1 . 2 4 3 1 . . . Utility 7 | . 1 4 2 5 9 9 8 7 7 6 6 7 7 7 4 4 4 4 4 4 7 8 10 10 8 6 8 11 10 7 6 Weapon 4 | . 3 3 4 9 5 5 5 4 5 3 3 4 3 4 4 3 3 5 7 7 5 4 3 3 4 4 3 3 3 4 5 Tool/Special . | . . . . . . . . . . . . . . . . . . . . . . . . . . . . . . . . Unused Backups 95 | . 4 3 15 5 9 . 1 4 . 4 5 . 3 1 1 2 2 . . 1 . . 2 3 7 1 3 . 8 1 10 Power 7 | . . . 2 1 1 . . . . . 1 . . . . . . . . . . . . 1 . . . . 1 . . Propulsion 20 | . 3 1 4 1 2 . . 2 . . . . . 1 . . . . . 1 . . . 1 1 . 1 . 2 . . Utility 41 | . . . 6 2 4 . . 1 . 3 3 . 3 . 1 1 2 . . . . . 1 . 5 . 2 . 3 1 3 Weapon 22 | . 1 1 3 1 2 . 1 1 . 1 1 . . . . 1 . . . . . . 1 1 1 1 . . . . 5 Tool/Special 5 | . . 1 . . . . . . . . . . . . . . . . . . . . . . . . . . 2 . 2 Average Slot Usage (%) 94 | . 100 99 99 99 99 87 92 89 73 78 96 89 95 97 100 99 99 96 100 100 99 90 90 99 97 96 90 94 94 89 87 Engine 3 | . 14 2 10 11 11 11 11 6 . 4 . 2 3 . 5 5 . . . . . . . . . . . . 3 . . Core 3 | . . 11 . . . . . 2 6 2 12 1 7 9 5 5 10 10 10 10 6 7 8 10 8 3 . . . . . Reactor 2 | . . . . . . . . . . . . . . . . . . . . . 3 2 . . . 5 7 7 4 6 7 Treads 3 | . 14 2 11 11 11 11 10 8 6 1 . . . . . . . . . . . . . . 1 . . . . . . Leg 2 | . . . . . . . 4 2 . . . . . . . . . . . . . . . . 2 10 . . . . 17 Wheel 5 | . 14 25 22 22 22 12 11 16 20 4 . . . . . . . . . . . . . . . . . . . . . Hover 10 | . . . . . . . . 1 . . . . . 6 29 28 29 25 26 26 26 17 19 26 20 11 19 19 19 20 2 Flight 3 | . . . . . . . . . . 25 33 32 32 22 . . . . . . . . . . . . . . . . . Device 11 | . 8 13 11 11 7 8 9 5 2 6 18 19 6 7 5 3 1 9 10 10 5 9 9 9 17 27 20 18 20 16 17 Storage 6 | . 14 14 11 11 11 11 11 6 6 6 6 6 6 5 5 5 5 5 5 5 5 5 5 5 5 4 4 4 4 5 4 Processor 10 | . . . . . . . . 7 5 2 6 6 6 5 5 5 22 21 21 21 21 21 21 15 15 14 14 15 19 22 18 Hackware 8 | . . . . . 3 2 . 10 5 9 4 . 12 23 29 27 14 15 15 15 20 14 14 20 9 4 10 12 8 7 8 Protection 4 | . 5 . 10 11 9 10 12 7 6 1 2 6 5 1 . 2 . . . . . . . . 2 4 3 3 1 1 2 Energy Cannon 2 | . . . 8 11 11 10 . . . . . . . . . . 1 . . . . . 3 5 1 1 3 4 4 4 1 Ballistic Gun 1 | . 13 7 6 . 7 . . 3 1 . . . . . . . 4 1 . . . . . . . . . . . . . Special Weapon 3 | . . . . . 2 11 11 3 . . . . 5 5 5 5 3 4 5 5 4 3 4 5 3 2 2 3 3 . 1 Impact Weapon 1 | . . . . . . . 11 . . . . . . . . . . . 5 5 4 5 . . . . . . . . . Slashing Weapon 1 | . . . . . . . . 1 . 4 5 6 5 5 5 5 . . . . . . . . 3 1 . . . 1 3 Peak Build Rating 210 | 8 11 15 25 25 30 30 33 58 57 64 72 70 76 85 86 86 110 116 111 113 126 119 128 113 135 157 155 157 167 179 210 Average Rating 90 | 6 9 14 21 24 26 26 27 46 49 53 68 65 66 74 82 80 102 108 111 111 116 113 117 108 116 147 142 144 154 161 181 On Entrance 80 | . 8 11 15 25 25 30 25 30 44 52 63 70 63 65 81 83 86 106 111 111 112 117 112 113 112 134 143 141 151 157 179 Avg Prop Armor Cover (%) 8 | 13 11 11 8 7 7 9 11 10 3 4 . 4 . . . . . . . . . . . . 4 . . . . . 2 Naked Turns . | . . . . . . . . . . . . . . . . . . . . . . . . . . . . . . . . Heaviest Build 142 | 15 34 34 100 106 106 100 102 125 137 137 42 39 48 48 37 41 52 71 62 62 75 76 82 69 91 121 102 87 112 100 142 Greatest Support 168 | 16 16 24 24 24 24 24 12 60 38 51 57 42 53 57 57 57 65 69 63 63 78 77 75 74 122 162 83 84 84 84 168 Greatest Overweight (x) 10 | . 2 2 4 4 4 8 8 10 3 3 . 1 1 1 . . 1 1 . . 1 1 1 1 4 1 1 1 2 2 6 Average Overweight (x) . | . 1 1 1 4 3 7 8 3 2 . . . . . . . . . . . . . . . . . . . . . . Largest Inventory Capacity 25 | 8 15 15 25 25 25 25 25 25 25 25 15 15 15 15 15 15 15 20 20 20 20 20 20 20 20 20 20 20 20 20 20 Average Capacity 19 | 7 11 15 16 25 25 25 25 25 25 17 15 15 15 15 15 15 15 19 20 20 20 20 20 20 20 20 20 20 20 20 19 Most Carried 25 | 8 15 15 25 25 25 25 25 25 25 25 15 15 15 15 15 15 15 20 20 20 20 20 20 20 20 20 20 20 20 20 20 Average Carried 19 | 5 10 14 15 24 24 24 24 24 24 16 14 14 14 14 14 14 14 17 20 19 19 19 19 19 19 19 19 19 19 19 19 Final Capacity 25 | 8 15 15 25 25 25 25 25 25 25 15 15 15 15 15 15 15 15 20 20 20 20 20 20 20 20 20 20 20 20 20 5 Final Carried 25 | 8 15 15 25 25 25 25 25 24 24 15 15 15 15 15 15 15 15 20 20 20 19 20 20 19 20 18 20 20 20 20 5 Class Distribution -------------------- 20% | Bothacker-Mutant 15% | Scavenger-Mutant 14% | Mutant 12% | Commander-Mutant 6% | Bothacker-Sprinter 5% | Scavenger-Scout 4% | Botlord-Mutant 3% | Scavenger-Assassin 3% | Botlord-Scout Dominant Class ---------------- Mutant | -10/Materials Mutant | -10/Mines Mutant | -9/Materials Mutant | -9/Storage Bothacker-Mutant | -9/Garrison Commander-Mutant | -9/Recycling Commander-Mutant | -9/Scraptown Scavenger-Mutant | -6/Factory Mutant | -6/Waste Mutant | -6/Factory Bothacker-Sprinter | -6/Garrison Bothacker-Mutant | -6/Factory Bothacker-Sprinter | -6/Garrison Commander-Sprinter | -5/Factory Bothacker-Mutant | -5/Waste Bothacker-Sprinter | -5/Factory Scavenger-Mutant | -5/Garrison Scavenger-Mutant | -4/Factory Scavenger-Scout | -4/Waste Scavenger-Scout | -4/Factory Bothacker-Mutant | -4/Garrison Bothacker-Scout | -4/Factory Bothacker-Mutant | -4/Garrison Botlord-Skirmisher | -4/Factory Bothacker-Mutant | -4/Garrison Scavenger-Mutant | -3/Research Botlord-Mutant | -3/Garrison Botlord-Scout | -3/Research Scavenger-Scout | -3/Quarantine Scavenger-Mutant | -3/Garrison Scavenger-Assassin | -2/Research Resources | -11 -10 -10 -9 -9 -9 -9 -9 -6 -6 -6 -6 -6 -6 -5 -5 -5 -5 -4 -4 -4 -4 -4 -4 -4 -4 -3 -3 -3 -3 -3 -2 ----------- Run | Yrd Mat Min Mat Sto Gar Rec Scr Fac Was Fac Gar Fac Gar Fac Was Fac Gar Fac Was Fac Gar Fac Gar Fac Gar Res Gar Res Qua Gar Res Matter Collected 16919 | 318 170 147 673 217 462 120 132 652 41 407 346 100 895 373 . 239 1068 380 . 296 1417 457 797 212 1185 751 1093 424 635 765 2147 Remotely 323 | . . . . . . . . . . . . . . . . . . . . . . . . . . 323 . . . . . Salvage Created 16705 | 129 308 253 1086 409 506 85 90 906 438 280 791 350 1003 28 . 41 697 235 . 173 722 274 722 179 661 201 1096 283 909 566 3284 Parts 846 | 12 30 17 83 26 41 3 5 44 5 29 37 23 38 2 . 5 27 7 . . 38 17 26 13 20 19 37 12 34 34 162 Haulers Intercepted 5 | . 1 . 4 . . . . . . . . . . . . . . . . . . . . . . . . . . . . Recyclers Shooed 14 | . . . 1 2 . . . 1 . . . 1 . . . . . . . 1 . . . . . 1 . . 2 . 5 Parts Field Recycled . | . . . . . . . . . . . . . . . . . . . . . . . . . . . . . . . . Retrieved Matter . | . . . . . . . . . . . . . . . . . . . . . . . . . . . . . . . . Parts Self-Destructed . | . . . . . . . . . . . . . . . . . . . . . . . . . . . . . . . . Prevented . | . . . . . . . . . . . . . . . . . . . . . . . . . . . . . . . . Parts Restored . | . . . . . . . . . . . . . . . . . . . . . . . . . . . . . . . . Kills | -11 -10 -10 -9 -9 -9 -9 -9 -6 -6 -6 -6 -6 -6 -5 -5 -5 -5 -4 -4 -4 -4 -4 -4 -4 -4 -3 -3 -3 -3 -3 -2 ------- Run | Yrd Mat Min Mat Sto Gar Rec Scr Fac Was Fac Gar Fac Gar Fac Was Fac Gar Fac Was Fac Gar Fac Gar Fac Gar Res Gar Res Qua Gar Res Combat Hostiles Destroyed 306 | . 10 11 30 13 16 . 1 11 2 5 7 . 18 . . . 7 3 . . 20 5 21 3 6 3 24 6 7 16 61 Melee 25 | . . . . . . . . . . 1 1 . 8 . . . 1 . . . 2 . . . 2 . . . . . 10 Guns 36 | . 8 2 7 . 3 . . 6 2 . . . . . . . 6 2 . . . . . . . . . . . . . Cannons 101 | . . . 6 7 7 . . . . . . . . . . . . . . . 9 4 7 3 4 3 7 5 4 4 31 AOE 128 | . 2 9 17 6 6 . . 4 . 4 6 . 9 . . . . 1 . . 9 . 13 . . . 13 . . 11 18 Classes Destroyed 27 | 3 5 2 4 . 2 . 1 2 1 . 1 . . . . . 1 . . . 1 . . . . . 1 . 1 . 2 Worker 29 | 1 2 . 4 . . . . 4 . 9 . 4 . 1 . . . 1 . 1 . . . . . 1 . . . . 1 Builder 9 | . 1 . 1 1 . . . 1 . . . 2 . . . . . . . . . 1 . . . . . . . . 2 Tunneler 9 | 3 . . 1 . . . . . . 1 . . . . . 2 . 1 . . . . . . . . . . . . 1 Hauler 7 | . 1 . 4 . . . . 2 . . . . . . . . . . . . . . . . . . . . . . . Recycler 14 | 1 . . 1 . . . . 1 . . . 2 . . . . . . . 1 . . . . . 1 . . 3 . 4 Mechanic 2 | . . 1 1 . . . . . . . . . . . . . . . . . . . . . . . . . . . . Operator 4 | . 1 . 2 . . . . . . . . . . . . . . . . . . 1 . . . . . . . . . Drone 2 | . . . . . . . . . . . . . . . . . . . . . . . . . . . . . . . 2 Watcher 5 | . . . 1 . 1 . . . . . . . 1 . . . . . . . 1 . . . 1 . . . . . . Swarmer 107 | . 6 3 8 4 6 . . . . 4 . . 7 . . . . . . . 9 . 10 . . . 13 4 . 11 22 Cutter 7 | . . . . . . . . . . . 4 . . . . . . . . . . . . . . . . . . . 3 Saboteur 1 | . . . . . . . . . . . . . . . . . . . . . 1 . . . . . . . . . . Grunt 92 | . 4 7 15 5 4 . . 6 . . . . 6 . . . 2 1 . . 3 2 6 1 4 . 7 2 3 . 14 Brawler 6 | . . . . . 2 . . . . . 2 . . . . . . 2 . . . . . . . . . . . . . Duelist 4 | . . . 2 . . . . . . . . . . . . . . . . . 1 . . . . . 1 . . . . Protector 1 | . . . 1 . . . . . . . . . . . . . . . . . . . . . . . . . . . . Sentry 21 | . . . 4 4 3 . . 1 . . 1 . 3 . . . . . . . . 1 . . 1 . . . . 1 2 Demolisher 2 | . . 1 . . . 1 . . . . . . . . . . . . . . . . . . . . . . . . . Specialist 2 | . . . . . . . . 2 . . . . . . . . . . . . . . . . . . . . . . . Hunter 11 | . . . . . . . . 1 . . . . . . . . 3 . . . 3 . 2 . . . 1 . . . 1 Programmer 40 | . . . . . 1 . . 1 . 1 1 . 2 . . . 1 . . . 3 2 2 2 . 2 1 . 2 4 15 Heavy 1 | . . . . . . . . . . . . . . . . . . . . . . . . . . . . . . . 1 Behemoth 3 | . . . . . . . . . . . . . . . . . 1 . . . . . 1 . 1 . . . . . . Compactor 2 | . . . . . . . . . 2 . . . . . . . . . . . . . . . . . . . . . . Quarantine Guard 1 | . . . . . . . . . . . . . . . . . . . . . . . . . . . . . 1 . . Executioner 1 | . . . . . . . . . . . . . . . . . . . . . . . . . . . 1 . . . . Alpha 7 1 | . . . . . . . . . . . . . . . . . . . . . . . . . . . . . 1 . . Elite 1 | . . . . . . . 1 . . . . . . . . . . . . . . . . . . . . . . . . Guerrilla 1 | . . . . . . . . . . . . . . . . . 1 . . . . . . . . . . . . . . Best Kill Streak 23 | 4 10 5 23 7 3 . 1 5 1 5 6 4 5 1 . 1 2 2 . 2 10 2 9 2 3 2 5 2 3 7 8 Combat Bots Only 18 | . 6 4 18 6 3 . 1 4 1 4 6 . 5 . . . 2 2 . . 10 2 9 2 3 2 5 3 3 7 8 Max Kills in Single Turn 6 | 1 4 3 5 4 3 1 1 2 1 3 2 1 3 1 . 1 1 1 . 1 2 1 5 1 1 1 4 1 1 3 6 Gunslinging . | . . . . . . . . . . . . . . . . . . . . . . . . . . . . . . . . Exploded 5 | . 1 3 4 4 3 . . 2 . 2 2 . 3 . . . . 1 . . 2 . 5 . . . 4 . . 3 4 Melee 1 | . . . . . . . . . . 1 1 . 1 . . . 1 . . . 1 . . . 1 . . . . . 1 Uniques/NPCs Destroyed 2 | . . . . . . . . . . . . . . . . . . . . . . . . . . 1 . . . . 1 BL-1NK (-3/Research) CY-PHR (-2/Research) Combat | -11 -10 -10 -9 -9 -9 -9 -9 -6 -6 -6 -6 -6 -6 -5 -5 -5 -5 -4 -4 -4 -4 -4 -4 -4 -4 -3 -3 -3 -3 -3 -2 -------- Run | Yrd Mat Min Mat Sto Gar Rec Scr Fac Was Fac Gar Fac Gar Fac Was Fac Gar Fac Was Fac Gar Fac Gar Fac Gar Res Gar Res Qua Gar Res Hostile Shots Fired 1977 | . 37 29 71 17 65 2 . 151 1 45 14 8 89 14 . 4 85 6 . . 73 19 119 4 59 16 80 27 107 84 751 Missed 639 | . 5 5 23 5 17 1 . 42 . 33 7 2 41 6 . 2 31 3 . . 31 7 53 2 14 3 26 4 27 26 223 Deflected 2 | . . . . . . . . . . . . . . . . . . . . . . . . . . . . . . . 2 Hits 1338 | . 32 24 48 12 48 1 . 109 1 12 7 6 48 8 . 2 54 3 . . 42 12 66 2 45 13 54 23 80 58 528 Melee 14 | . . . . . . . . . 1 . 1 . . . . . . . . . . . . . . . 1 . . . 11 Projectile 1324 | . 32 24 48 12 48 1 . 109 . 12 6 6 48 8 . 2 54 3 . . 42 12 66 2 45 13 53 23 80 58 517 AOE 12 | . . 6 . . . 1 . . . . . . . 1 . . . . . . . . . . 1 . . . . . 3 Critical Strikes 83 | . . . . . 3 . . . . . 1 1 1 . . . 1 . . . 3 2 2 . 4 1 7 1 12 3 41 Actively Blocked 41 | . . . . . . . . . . . . . . . . . . . . . . . . . 4 1 7 . 12 3 14 Part Disruptions 14 | . . . . . 1 . . 1 . . . . . . . . . . . . . . . . . . 1 . . . 11 Damage Taken 25833 | . 359 443 629 136 533 82 29 1124 30 152 173 228 814 233 . 137 901 62 . 28 670 671 1259 80 1155 256 1376 497 1507 1281 10988 Core 4259 | . 73 139 86 11 32 64 . 171 . 46 19 35 124 59 . 90 122 . . . 117 74 190 62 310 63 241 123 332 208 1468 Absorbed by Shields 562 | . . . . 51 197 . . 42 . . . . 4 . . . 80 . . . 39 . . . . 92 12 . . 45 . Ignored by Resistances 1587 | . . . . . . . . . . . . . . . . . . . . . . . . . . . . 58 132 192 1205 Regen/Repaired (Parts) 1929 | . . . 85 130 . . 457 . . . . . . . . 382 . 65 . . . . . . . 75 490 102 143 . . Core Remaining (%) 50 | 100 . 15 . . . . 51 . . . . . 53 . . . 72 . . . . . . . 34 . . . . 25 . Volleys Fired 1441 | 16 23 16 52 22 116 22 2 58 19 3 13 . 47 32 6 11 108 23 . 2 123 21 97 16 78 40 106 39 107 42 181 Largest 2 | 2 2 2 2 2 2 1 1 2 2 1 1 . 1 1 1 1 2 2 . 1 1 1 1 1 1 2 2 1 1 1 1 Hottest 178 | 70 100 70 105 105 105 68 5 108 108 43 43 . 43 7 7 7 120 120 . 7 120 120 120 120 120 178 178 120 120 120 120 Shots Fired 1675 | 32 43 25 90 36 166 24 2 87 22 3 13 . 47 32 6 11 137 32 . 2 122 22 95 15 77 57 109 39 107 42 180 Gun 387 | 32 40 18 42 . 44 . . 65 22 . . . . . . . 85 18 . . 21 . . . . . . . . . . Cannon 834 | . . . 35 34 108 4 . 9 . . . . . . . . 23 8 . . 56 15 63 9 55 45 75 25 87 38 145 Launcher 83 | . 2 7 13 2 3 . . 4 . 3 13 . 6 . . . . 1 . . 5 . 5 . . . 5 . . 4 10 Special 371 | . 1 . . . 11 20 2 9 . . . . 41 32 6 11 29 5 . 2 40 7 27 6 22 12 29 14 20 . 25 Kinetic 533 | 16 20 9 48 15 56 . . 52 3 . . . . . . . 80 18 . . 67 12 12 . 19 21 16 7 . 7 55 Thermal 575 | 16 21 9 29 19 96 4 . 22 19 . . . . . . . 28 8 . . 10 3 51 9 30 24 20 5 45 19 88 Explosive 76 | . 2 7 13 2 3 . . 4 . 3 13 . 6 . . . . 1 . . 5 . 5 . . . 5 . . 4 3 Electromagnetic 121 | . . . . . . . . . . . . . . . . . . . . . . . . . 6 . 39 13 42 12 9 Robot Hit Streak 29 | 5 10 12 17 8 18 11 5 28 16 9 17 . 13 5 5 10 16 11 . 3 18 20 22 7 12 13 20 19 29 17 12 Robot Miss Streak 4 | 2 4 2 3 1 3 2 . 2 2 . . . 2 3 1 1 4 1 . . 3 . 2 1 3 2 1 3 2 1 3 Penetration Max 1 | . . . . . . . . 1 . . . . . . . . 1 . . . . . . . . . . . . . . Secondary Targets 2 | . . . . . . . . 1 . . . . . . . . 1 . . . . . . . . . . . . . . Max Gunslinging Chain 1 | . . . . . . . . 1 . . . . . . . . 1 . . . . . . . . . . . . . . Shots Hit Robots 1294 | 20 29 14 55 20 73 19 4 84 28 23 59 10 88 23 7 12 75 20 . 5 94 24 45 10 62 44 73 26 63 21 164 Core Hits 570 | 6 17 20 66 16 32 1 . 34 9 17 20 7 29 1 . 2 18 8 . . 37 8 33 3 16 7 26 7 17 29 84 Critical Kills 4 | . . . . . . . . 1 . . . . . . . . . . . . . . 1 . . . . . . . 2 Critical Parts Destroyed 4 | . . . . . . . . 1 . . . . . . . . 1 1 . . . 1 . . . . . . . . . Critical Strikes 48 | . 1 1 . 1 . . . 2 . . . . 8 . . . 3 1 . . 4 2 1 . 3 1 . 2 2 1 15 Burn 2 | . 1 1 . . . . . . . . . . . . . . . . . . . . . . . . . . . . . Meltdown 3 | . . . . . . . . . . . . . . . . . . . . . . . 1 . . . . . . . 2 Destroy 2 | . . . . . . . . 1 . . . . . . . . 1 . . . . . . . . . . . . . . Blast 15 | . . . . 1 . . . . . . . . . . . . . . . . 4 1 . . 2 1 . 1 . 1 4 Corrupt 3 | . . . . . . . . . . . . . . . . . . . . . . . . . . . . 1 2 . . Smash 3 | . . . . . . . . 1 . . . . . . . . . 1 . . . 1 . . . . . . . . . Sever 20 | . . . . . . . . . . . . . 8 . . . 2 . . . . . . . 1 . . . . . 9 Melee Attacks 448 | . . . 1 . . . 2 11 7 38 66 11 92 9 2 7 9 3 . 5 27 16 10 . 40 . 4 . 1 . 87 Thermal 8 | . . . . . . . . . . . . . . . . . . . . . . . . . 3 . 4 . 1 . . Impact 77 | . . . . . . . 2 2 . . . . 13 . . . . 3 . 5 27 15 10 . . . . . . . . Slashing 326 | . . . . . . . . 7 . 32 55 11 74 9 2 7 9 . . . . . . . 37 . . . . . 83 Piercing 4 | . . . . . . . . . . . . . . . . . . . . . . . . . . . . . . . 4 Sneak Attacks 88 | . . . 1 . . . 1 9 1 14 10 8 18 1 2 2 . 2 . 2 3 2 . . 1 . 1 . . . 10 Combat Hostiles 5 | . . . . . . . . . 1 . . . . . 2 . . . . . . . . . . . . . . . 2 Follow-up Attacks 5 | . . . . . . . . . . . . . 1 . . . . . . . . . . . . . . . . . 4 Martial Strikes 3 | . . . . . . . . . . . . . . . . . . . . . . . . . . . . . . . 3 Damage Inflicted 58222 | 262 907 754 2720 893 1865 65 156 2426 615 1520 3793 658 3901 156 68 144 1649 646 . 252 3436 955 2799 256 2271 1610 3228 709 1670 2743 15095 Guns 5319 | 262 370 150 436 . 420 . . 1135 615 . . . . . . . 1298 341 . . 292 . . . . . . . . . . Cannons 19577 | . . . 450 471 804 65 . 124 . . . . . . . . 170 . . . 1674 641 1054 256 1626 1597 2048 709 1670 1025 5193 Explosions 19431 | . 537 604 1834 422 641 . . 609 . 438 880 . 1096 . . . . 134 . . 989 . 1745 . . . 1180 . . 1718 6604 Melee 13783 | . . . . . . . 156 558 . 1082 2913 658 2805 156 68 144 181 171 . 252 481 253 . . 645 . . . . . 3260 Ramming 112 | . . . . . . . . . . . . . . . . . . . . . . 61 . . . 13 . . . . 38 Kinetic 12826 | 173 160 87 515 193 568 . . 829 54 . . . . . . . 1264 341 . . 1753 599 441 . 813 870 764 239 . 325 2838 Thermal 15091 | 89 630 63 371 278 656 65 . 430 561 . . . . . . . 204 . . . 213 42 613 256 721 727 410 42 527 693 7500 Explosive 13247 | . 117 604 1834 422 641 . . 609 . 438 880 . 1096 . . . . 134 . . 989 . 1745 . . . 1180 . . 1554 1004 Electromagnetic 3163 | . . . . . . . . . . . . . . . . . . . . . . . . . 92 . 874 428 1143 171 455 Impact 1480 | . . . . . . . 156 61 . . . . 106 . . . . 171 . 252 481 253 . . . . . . . . . Slashing 12131 | . . . . . . . . 497 . 1082 2913 658 2699 156 68 144 181 . . . . . . . 645 . . . . . 3088 Piercing 172 | . . . . . . . . . . . . . . . . . . . . . . . . . . . . . . . 172 Highest Corruption 17 | . . . . . 2 2 . 1 7 8 9 9 17 . 5 5 2 4 7 7 9 12 15 16 16 . . 2 2 2 8 Average Corruption 7 | . . . . . 1 2 . 1 6 7 8 9 16 . 5 3 1 3 7 7 8 9 14 15 16 . . 2 2 2 3 Corruption Purged 16 | . . . . . . . . . . . . . . . . 5 2 4 . . . . . . . . . . . . 5 Corruption Blocked 18 | . . . . . . . . . . . . . . . . . . . . . . . . . . . . . 7 4 7 Effects 409 | . . . . . 18 16 . 2 7 23 17 11 62 . 1 6 1 2 1 3 39 30 47 22 67 . . 6 8 3 17 Message Errors 93 | . . . . . 6 1 . . 1 3 4 2 11 . . 1 . . . 1 7 11 19 6 13 . . 1 2 1 3 Matter Fused 98 | . . . . . 4 5 . 1 3 8 2 5 18 . . 2 . . . . 13 2 9 6 17 . . 1 . . 2 Heat Flow Errors 47 | . . . . . . . . . 2 1 4 1 6 . . . . . . . 7 7 3 3 7 . . 1 1 1 3 Energy Discharges 46 | . . . . . 2 2 . 1 . 3 2 1 7 . . 1 . 1 1 . 3 5 5 1 6 . . 1 2 1 1 Parts Rejected 8 | . . . . . . . . . . 1 . 1 1 . . . . . . 1 . 1 1 . 1 . . . . . 1 Parts Fused 6 | . . . . . . 1 . . . . . . 1 . . . . . . . . 1 2 . . . . . . . 1 Data Loss (minor) 50 | . . . . . 4 2 . . 1 4 3 1 8 . . 1 . . . . 6 . 3 . 12 . . 2 2 . 1 Data Loss (major) 23 | . . . . . 1 2 . . . 2 2 . 7 . 1 . . 1 . . 1 2 1 . 3 . . . . . . Misfires 4 | . . . . . . 2 . . . . . . . . . . . . . . . 1 . . . . . . . . 1 Alerts 19 | . . . . . 1 1 . . . 1 . . 3 . . 1 . . . 1 1 . 1 4 2 . . . 1 . 2 Misdirections 7 | . . . . . . . . . . . . . . . . . . . . . . . 1 1 5 . . . . . . Weapon Failures 8 | . . . . . . . . . . . . . . . . . 1 . . . 1 . 2 1 1 . . . . . 2 Overload Shots . | . . . . . . . . . . . . . . . . . . . . . . . . . . . . . . . . Overflow Damage 4077 | . 121 43 14 5 30 13 31 137 . 246 200 71 121 . . . . 98 . 150 196 159 88 32 73 42 71 47 121 216 1752 Projectiles 1250 | . . . . 5 . 13 . . . . . . . . . . . . . . 106 18 65 32 45 42 15 47 121 61 680 Explosions 1133 | . 121 43 14 . 30 . . . . . 72 . 11 . . . . . . . 33 . 23 . . . 56 . . 155 575 Melee 1694 | . . . . . . . 31 137 . 246 128 71 110 . . . . 98 . 150 57 141 . . 28 . . . . . 497 Knockbacks 51 | . . . . 1 2 . . 1 . . . . 1 . . . . . . 1 12 5 3 . 2 6 . 3 . 3 11 Impact 7 | . . . . . . . . 1 . . . . 1 . . . . . . 1 2 2 . . . . . . . . . Kinetic 41 | . . . . 1 2 . . . . . . . . . . . . . . . 9 2 3 . 2 6 . 3 . 2 11 Secondary 3 | . . . . . . . . . . . . . . . . . . . . . 1 1 . . . . . . . 1 . Self-Inflicted Damage 557 | . 26 5 47 . 103 . . . . . 55 . . . . . . . . . . 30 . . . 6 6 . . 279 . Shots 13 | . 1 1 1 . 3 . . . . . 1 . . . . . . . . . . . . . . . 1 . . 5 . Rammed 2 | . . . . . . . . . . . . . . . . . . . . . . 1 . . . 1 . . . . . Targets Rammed 4 | . . . . . . . . . . . . . . . . . . . . . . 1 . . . 1 . . . . 2 Kicked 2 | . . . . . . . . . . . . . . . . . . . . . . . . . . . . . . . 2 Crushed . | . . . . . . . . . . . . . . . . . . . . . . . . . . . . . . . . Highest Temperature 436 | 90 147 63 269 301 378 28 . 110 267 154 249 65 250 2 . . 306 148 . . 286 249 240 224 436 353 313 336 168 201 401 Average Temperature 77 | 33 45 27 53 89 70 16 . 31 135 56 49 10 49 2 . . 76 33 . . 76 72 79 94 123 107 88 117 39 49 98 Received Heat Transfer 3197 | . 117 75 246 38 83 . 6 314 . 27 9 54 96 24 . 9 137 . . . 12 48 117 . 213 21 123 66 . 12 1350 Effects 14 | . . . . . 2 . . . 2 . 3 . . . . . . . . . 4 . . . . . . 2 . . 1 Shutdowns 2 | . . . . . . . . . . . . . . . . . . . . . . . . . . . . 2 . . . Energy Bleed 4 | . . . . . 1 . . . 2 . . . . . . . . . . . . . . . . . . . . . 1 Interference 7 | . . . . . . . . . . . 3 . . . . . . . . . 4 . . . . . . . . . . Short Circuit 1 | . . . . . 1 . . . . . . . . . . . . . . . . . . . . . . . . . . Siege Activations . | . . . . . . . . . . . . . . . . . . . . . . . . . . . . . . . . Martial Activations 2 | . . . . . . . . . . . . . . . . . . . . . . . . . . . . . . . 2 Total Turns 38 | . . . . . . . . . . . . . . . . . . . . . . . . . . . . . . . 38 Longest Duration 32 | . . . . . . . . . . . . . . . . . . . . . . . . . . . . . . . 32 Shielding Activations . | . . . . . . . . . . . . . . . . . . . . . . . . . . . . . . . . Robots Disrupted . | . . . . . . . . . . . . . . . . . . . . . . . . . . . . . . . . Combat Hostiles . | . . . . . . . . . . . . . . . . . . . . . . . . . . . . . . . . Robots Corrupted 17 | . . . . . . . 1 1 . . . . 1 . . . . . . 1 1 2 . . . . 4 1 4 1 . Combat Hostiles 13 | . . . . . . . 1 1 . . . . 1 . . . . . . . . 1 . . . . 4 1 3 1 . Parts Fried 41 | . . . . . . . . 1 . . . . . . . . . 2 . 4 . 1 . . . . 6 8 17 1 1 Impact Corruptions 17 | . . . . . . . 1 1 . . . . 1 . . . . 2 . 4 2 6 . . . . . . . . . Robots Melted 3 | . . . . . . . . . . . . . . . . . . . . . . . 1 . . . . . . . 2 Combat Hostiles 3 | . . . . . . . . . . . . . . . . . . . . . . . 1 . . . . . . . 2 Parts Melted 11 | . 1 . . 1 . . 1 1 . . . . 1 . . . . . . . 2 . . . . . 2 . . . 2 Heat Transferred 11439 | 259 1016 259 658 481 1041 111 . 922 1300 . . . . . . . 222 . . . 185 37 518 185 592 299 333 37 370 557 2057 Parts Sabotaged . | . . . . . . . . . . . . . . . . . . . . . . . . . . . . . . . . Parts Stolen . | . . . . . . . . . . . . . . . . . . . . . . . . . . . . . . . . Parts Stripped . | . . . . . . . . . . . . . . . . . . . . . . . . . . . . . . . . Power Chain Reactions 3 | . . . . . . . . . . . . . . . . . . . . . . . . . . . . . . 1 2 Alert | -11 -10 -10 -9 -9 -9 -9 -9 -6 -6 -6 -6 -6 -6 -5 -5 -5 -5 -4 -4 -4 -4 -4 -4 -4 -4 -3 -3 -3 -3 -3 -2 ------- Run | Yrd Mat Min Mat Sto Gar Rec Scr Fac Was Fac Gar Fac Gar Fac Was Fac Gar Fac Was Fac Gar Fac Gar Fac Gar Res Gar Res Qua Gar Res Maximum Alert Level 5 | . 2 . 2 2 4 2 . 1 . 1 3 2 4 4 1 1 3 2 . . 4 3 5 3 4 3 5 4 2 3 5 Low Security (%) 16 | 100 40 100 53 47 . . . 17 100 98 5 . . . . 70 14 . 100 100 6 23 5 . . . . . . . . Level 1 23 | . 13 . 29 46 7 35 . 82 . 1 3 79 12 . 100 29 28 82 . . 11 45 . 37 . 15 18 . 68 15 22 Level 2 24 | . 45 . 17 5 48 64 . . . . 45 20 17 . . . 38 17 . . 1 19 22 50 12 23 25 . 31 40 45 Level 3 15 | . . . . . 16 . . . . . 45 . 14 92 . . 18 . . . 54 11 29 11 28 60 17 37 . 43 4 Level 4 15 | . . . . . 27 . . . . . . . 55 7 . . . . . . 25 . 32 . 58 . 9 62 . . 22 Level 5 2 | . . . . . . . . . . . . . . . . . . . . . . . 8 . . . 29 . . . 3 High Security . | . . . . . . . . . . . . . . . . . . . . . . . . . . . . . . . . Max Security . | . . . . . . . . . . . . . . . . . . . . . . . . . . . . . . . . Peak Influence 2076 | 10 438 195 579 431 1327 652 . 338 79 206 828 439 1485 1113 395 368 826 435 86 129 1386 727 1613 890 1511 849 1823 1325 681 774 2076 Initial 1025 | . . 161 47 24 274 597 . . 79 . 126 434 263 766 389 251 58 433 86 53 83 727 134 702 623 849 235 1025 681 198 435 Average 612 | 1 246 129 212 187 752 465 . 222 30 98 629 370 1037 946 375 157 462 319 83 76 883 398 988 466 1144 685 1013 1175 387 561 704 Influence Increases 22025 | 25 582 368 908 611 1193 177 . 768 . 452 712 153 1507 757 20 346 1158 297 . 146 1603 347 1629 758 1308 166 1738 702 375 636 2583 Destroy 0b10 Robot/C 9260 | . 200 220 580 320 540 40 . 380 . 100 200 60 640 280 . 140 420 100 . . 700 160 660 280 560 60 660 340 140 320 1160 Destroy 0b10 Robot/NC 550 | 25 25 5 80 10 10 5 . 45 . 55 25 40 20 30 . 10 10 10 . 10 20 10 . 5 20 15 . . 15 10 40 Destroy Leader 1214 | . 42 40 110 92 30 . . 74 . 20 10 . 30 46 . 40 30 10 . . 50 40 50 80 50 10 80 50 20 30 180 Allied During Kill 2544 | . . . . 41 86 10 . 56 . . 31 20 133 323 . 88 81 9 . . 229 25 219 358 174 17 383 242 19 . . Trap Triggered on 0b10 110 | . . . 10 . . . . . . 20 . . . . . . 10 . . . . 30 . . . . 40 . . . . Successful Hack 617 | . 33 . 30 26 26 32 . . . 27 14 18 14 14 . 46 8 18 . 29 18 28 28 . . 40 7 52 21 16 72 Select Force Hacks 120 | . . . . . . 90 . . . . . . . . . . . . . 30 . . . . . . . . . . . Disable Machine 1140 | . 225 . . 75 75 . . 150 . . . . 15 30 . . 60 45 . . 120 15 75 15 . . . . 120 45 75 Anti-Garrison Action 2550 | . . . . . 300 . . . . . 250 . 450 . . . 350 . . . 300 . 250 . 300 . 300 . . 50 . Destroy Structure 2975 | . 42 43 68 17 126 . . 63 . 35 152 . 130 34 20 22 144 60 . 2 151 24 272 20 144 24 208 18 40 165 951 Partial Spotted 210 | . . . . . . . . . . 90 15 15 15 . . . 15 15 . 15 . 15 . . 15 . . . . . . Lose Combat Pursuer 735 | . 15 60 30 30 . . . . . 105 15 . 60 . . . 30 30 . 60 15 . 75 . 45 . 60 . . . 105 Influence Decreases 20674 | 25 168 659 974 245 289 1234 270 540 228 271 65 604 424 1104 774 622 415 877 170 103 336 1541 483 1206 687 1363 229 1312 1323 127 2006 Entered New Map 8483 | . . 253 76 33 149 730 270 . 149 . 55 394 114 694 724 108 25 393 160 23 36 659 58 636 267 662 79 798 532 67 339 Time Decay 5872 | 25 168 386 448 212 . 474 . 370 60 241 . 170 . 140 50 294 . 294 10 80 . 392 . 230 . 386 . 294 446 . 702 Lost Part 970 | . . 20 . . . 10 . 60 . 20 10 20 70 30 . . 30 . . . 20 40 50 . 90 . 50 20 40 60 330 Lost Ally 2499 | . . . . . 140 20 . 110 19 10 . 20 240 90 . 70 360 40 . . 280 150 100 40 330 40 100 200 30 . 110 Purge Threat 2850 | . . . 450 . . . . . . . . . . 150 . 150 . 150 . . . 300 275 300 . 275 . . 275 . 525 Squads Dispatched 65 | . 2 2 3 2 1 . . 6 . 3 . . . 2 . 5 . 1 . 2 . 5 . 3 . 5 . 8 1 . 14 Investigation 9 | . 1 1 1 . . . . . . . . . . 1 . 1 . . . 2 . 2 . . . . . . . . . Extermination 22 | . . . . . . . . 2 . 3 . . . . . 1 . 1 . . . 1 . 2 . 2 . 2 1 . 7 Reinforcement 15 | . 1 . 1 1 . . . 4 . . . . . . . . . . . . . 2 . . . 2 . 1 . . 3 Assault 10 | . . 1 1 . 1 . . . . . . . . . . . . . . . . . . . . 1 . 2 . . 4 Garrison 9 | . . . . 1 . . . . . . . . . 1 . 3 . . . . . . . 1 . . . 3 . . . Intercept . | . . . . . . . . . . . . . . . . . . . . . . . . . . . . . . . . Searches Triggered . | . . . . . . . . . . . . . . . . . . . . . . . . . . . . . . . . Unchained Authorized 1 | . . . . . . . . . . . . . . . . . . . . . . . . . . 1 . . . . . Construction Impeded 4 | . . . 1 . . . . 1 . . . . . . . . . . . . . 2 . . . . . . . . . Haulers Reinforced 3 | . . . . . . . . 2 . . . . . . . . . . . . . . . . . . . 1 . . . Active Scanning Responses . | . . . . . . . . . . . . . . . . . . . . . . . . . . . . . . . . Cargo Convoy Interrupts . | . . . . . . . . . . . . . . . . . . . . . . . . . . . . . . . . Alert ID Control Effect 8 | . . . . . . . . . . . . . . . . . . . . . . . . . . 1 2 4 . . 1 Stealth | -11 -10 -10 -9 -9 -9 -9 -9 -6 -6 -6 -6 -6 -6 -5 -5 -5 -5 -4 -4 -4 -4 -4 -4 -4 -4 -3 -3 -3 -3 -3 -2 --------- Run | Yrd Mat Min Mat Sto Gar Rec Scr Fac Was Fac Gar Fac Gar Fac Was Fac Gar Fac Was Fac Gar Fac Gar Fac Gar Res Gar Res Qua Gar Res Distress Signals 17 | . 2 . 1 3 . 1 . 2 . 1 . . . 4 . . . . . 1 . 1 . . 1 . . . . . . Communications Jammed 104 | . . . . . . . . . . . . . . 36 . . . . . . . . . . . . . 7 . . 61 Distress Signals 103 | . . . . . . . . . . . . . . 35 . . . . . . . . . . . . . 7 . . 61 Times Spotted 770 | . 13 15 44 18 33 5 2 23 6 25 12 5 43 24 4 4 34 11 4 8 46 16 44 7 39 19 39 13 16 33 165 Peak Tracking Total 17 | . 3 4 8 8 4 5 2 3 3 6 3 3 7 6 2 2 5 5 4 7 8 4 9 3 12 5 6 5 4 14 17 Tactical Retreats 36 | . 1 4 2 2 . . . . . 4 1 . 2 . . . 1 1 . 1 1 . 3 . 3 . 3 . . . 7 ID Masks Used 1 | . . . . . . . . . . . . . . . . . . . . . . . . . . . . . . . 1 IFF Responses 13 | . . . . . . . . . . . . . . . . . . . . . . . . . . . . . . . 13 Traps | -11 -10 -10 -9 -9 -9 -9 -9 -6 -6 -6 -6 -6 -6 -5 -5 -5 -5 -4 -4 -4 -4 -4 -4 -4 -4 -3 -3 -3 -3 -3 -2 ------- Run | Yrd Mat Min Mat Sto Gar Rec Scr Fac Was Fac Gar Fac Gar Fac Was Fac Gar Fac Was Fac Gar Fac Gar Fac Gar Res Gar Res Qua Gar Res Traps Triggered 63 | . . . 1 . 6 . . 1 . 2 4 1 12 1 . 1 7 2 . 2 5 1 4 . 2 . 5 1 1 3 1 Indirectly . | . . . . . . . . . . . . . . . . . . . . . . . . . . . . . . . . Trap Hack Attempts 64 | . . . 31 . . . . . . 14 . . . . . . . . . . . 19 . . . . . . . . . Triggered . | . . . . . . . . . . . . . . . . . . . . . . . . . . . . . . . . Disarmed . | . . . . . . . . . . . . . . . . . . . . . . . . . . . . . . . . Reprogrammed 20 | . . . 6 . . . . . . 4 . . . . . . . . . . . 10 . . . . . . . . . Reused 13 | . . . 1 . . . . . . 2 . . . . . . 1 . . . . 3 . . . 2 4 . . . . Traps Extracted 15 | . . . . . . . . . . . . . . . . . . . . . . 6 . . . 4 5 . . . . Installed 18 | . . . . . . . . . . . 1 . . . . . 1 . . . . 4 . . . 2 9 . . . 1 Triggered 11 | . . . 1 . . . . . . 2 . . . . . . 1 . . . . 3 . . . . 4 . . . . Most Traps Carried 8 | . . . . . 4 4 4 4 1 1 1 . . . . . . . . . 4 6 6 6 6 8 8 4 4 4 4 Machines | -11 -10 -10 -9 -9 -9 -9 -9 -6 -6 -6 -6 -6 -6 -5 -5 -5 -5 -4 -4 -4 -4 -4 -4 -4 -4 -3 -3 -3 -3 -3 -2 ---------- Run | Yrd Mat Min Mat Sto Gar Rec Scr Fac Was Fac Gar Fac Gar Fac Was Fac Gar Fac Was Fac Gar Fac Gar Fac Gar Res Gar Res Qua Gar Res Machines Disabled 119 | . 15 . . 5 9 . . 10 . . 4 . 8 2 . . 9 3 . . 12 1 10 1 5 . 5 . 9 6 5 Max in Single Turn 15 | . 15 . . 1 1 . . 3 . . 1 . 1 1 . . 1 1 . . 2 1 1 . 1 . 1 . 1 1 3 Garrison Access 5 | . . . . . . . . 1 . . . . . . . . . 1 . . . 1 . . . 1 . . . . 1 Garrison Relay 36 | . . . . . 4 . . . . . 2 . 7 . . . 5 . . . 4 . 5 . 4 . 4 . . 1 . Phase Generator 1 | . . . . . . . . . . . 1 . . . . . . . . . . . . . . . . . . . . Machines Repaired . | . . . . . . . . . . . . . . . . . . . . . . . . . . . . . . . . Machines Dismantled . | . . . . . . . . . . . . . . . . . . . . . . . . . . . . . . . . Machines Sabotaged . | . . . . . . . . . . . . . . . . . . . . . . . . . . . . . . . . Overloaded Fab Kills . | . . . . . . . . . . . . . . . . . . . . . . . . . . . . . . . . Hacking | -11 -10 -10 -9 -9 -9 -9 -9 -6 -6 -6 -6 -6 -6 -5 -5 -5 -5 -4 -4 -4 -4 -4 -4 -4 -4 -3 -3 -3 -3 -3 -2 --------- Run | Yrd Mat Min Mat Sto Gar Rec Scr Fac Was Fac Gar Fac Gar Fac Was Fac Gar Fac Was Fac Gar Fac Gar Fac Gar Res Gar Res Qua Gar Res Machines Accessed 144 | . 4 2 10 6 3 9 . 3 . 6 2 3 4 7 . 11 2 9 . 4 2 12 3 4 2 7 3 9 8 2 7 Terminals 88 | . 4 . 7 4 3 6 . 1 . 4 2 1 4 5 . 3 2 4 . . 2 6 3 2 2 3 3 5 6 2 4 Fabricators 9 | . . . . . . . . 1 . 1 . 1 . . . 2 . 1 . 2 . 1 . . . . . . . . . Repair Stations 7 | . . . 1 1 . . . . . . . . . . . 3 . 1 . . . 1 . . . . . . . . . Recycling Units 11 | . . . 1 . . 3 . . . . . . . 1 . . . 1 . 1 . 1 . 1 . 1 . 1 . . . Scanalyzers 12 | . . . 1 . . . . . . . . . . . . 2 . 1 . . . 1 . . . 1 . 3 1 . 2 Garrison Access 15 | . . . . 1 . . . 1 . 1 . 1 . 1 . 1 . 1 . 1 . 2 . 1 . 2 . . 1 . 1 Total Hacks 347 | . 16 2 42 19 5 28 . 10 . 12 4 6 6 12 . 25 6 27 . 9 6 28 7 8 5 13 5 19 10 3 14 Successful 189 | . 5 2 24 12 3 19 . 3 . 5 1 4 1 4 . 17 2 15 . 6 3 22 4 7 1 6 3 8 5 1 6 Failed 155 | . 11 . 17 7 2 9 . 7 . 7 3 2 5 8 . 7 4 12 . 3 3 6 3 1 4 7 2 10 5 2 8 Catastrophic 33 | . 3 . 3 . . . . 1 . 2 1 1 2 1 . . . 2 . . 2 1 . 1 . 2 1 5 2 1 2 Database Lockouts 3 | . . . 1 . . . . . . . . . . . . 1 . . . . . . . . . . . 1 . . . Manual 109 | . 13 . 12 6 1 15 . 6 . 5 1 2 1 3 . 6 1 2 . 4 4 11 4 3 1 3 2 1 2 . . Terminals 204 | . 16 . 27 14 5 20 . 1 . 6 4 1 6 8 . 5 6 11 . . 6 13 7 5 5 4 5 9 8 3 9 Fabricators 27 | . . . . . . . . 7 . 3 . 2 . . . 4 . 6 . 4 . 1 . . . . . . . . . Repair Stations 21 | . . . 3 4 . . . . . . . . . . . 8 . 3 . . . 3 . . . . . . . . . Recycling Units 27 | . . . 3 . . 8 . . . . . . . 2 . . . 3 . 2 . 5 . 1 . 2 . 1 . . . Scanalyzers 35 | . . . 9 . . . . . . . . . . . . 6 . 2 . . . 2 . . . 3 . 9 1 . 3 Garrison Access 31 | . . . . 1 . . . 2 . 3 . 3 . 2 . 2 . 2 . 3 . 4 . 2 . 4 . . 1 . 2 Terminal Hacks 63 | . 5 2 7 6 2 5 . . . 1 1 . 1 2 . 2 2 3 . . 2 6 2 3 1 . 3 2 2 1 2 Part Schematic 4 | . 1 . . . . 3 . . . . . . . . . . . . . . . . . . . . . . . . . Robot Schematic 2 | . . . . 2 . . . . . . . . . . . . . . . . . . . . . . . . . . . Robot Analysis 2 | . 2 . . . . . . . . . . . . . . . . . . . . . . . . . . . . . . Prototype ID Bank 1 | . . . . . . 1 . . . . . . . . . . . . . . . . . . . . . . . . . Open Door 8 | . . 2 . 1 . . . . . . . . . . . 1 1 . . . . . 1 . . . 1 . 1 . . Branch Access Points 2 | . . . 1 . . . . . . . . . . . . . . . . . . . . . . . . 1 . . . Emergency Access Points 8 | . . . . . 1 . . . . . 1 . 1 . . . 1 . . . 1 . 1 . 1 . 1 . . . . Machine Index 1 | . . . . . . . . . . . . . . . . . . . . . . 1 . . . . . . . . . Terminal Index 2 | . . . . . . 1 . . . . . . . . . . . . . . . 1 . . . . . . . . . Unreport Threat 11 | . . . 3 . . . . . . . . . . 1 . 1 . 1 . . . 2 . 2 . . . . . . 1 Locate Traps 7 | . 2 . . 1 . . . . . 1 . . . . . . . 1 . . . . . . . . . . 1 . 1 Reprogram Traps 2 | . . . 1 . . . . . . . . . . . . . . . . . . 1 . . . . . . . . . Recall Investigation 1 | . . . . . . . . . . . . . . . . . . . . . . 1 . . . . . . . . . Recall Extermination 2 | . . . . . . . . . . . . . . . . . . 1 . . . . . . . . . 1 . . . Hauler Manifests 2 | . . . 1 1 . . . . . . . . . . . . . . . . . . . . . . . . . . . Registered Components 1 | . . . 1 . . . . . . . . . . . . . . . . . . . . . . . . . . . . Zone Layout 3 | . . . . 1 . . . . . . . . . 1 . . . . . . . . . 1 . . . . . . . Garrison Registry 1 | . . . . . . . . . . . . . . . . . . . . . 1 . . . . . . . . . . Patrol Navigation 2 | . . . . . 1 . . . . . . . . . . . . . . . . . . . . . 1 . . . . Security Stations 1 | . . . . . . . . . . . . . . . . . . . . . . . . . . . . . . 1 . Fabricator Hacks 11 | . . . . . . . . 2 . 1 . 1 . . . 1 . 5 . . . 1 . . . . . . . . . Network Status 4 | . . . . . . . . . . 1 . 1 . . . . . 1 . . . 1 . . . . . . . . . Load Schematic 4 | . . . . . . . . 1 . . . . . . . 1 . 2 . . . . . . . . . . . . . Build 3 | . . . . . . . . 1 . . . . . . . . . 2 . . . . . . . . . . . . . Repair Station Hacks 15 | . . . 2 2 . . . . . . . . . . . 7 . 2 . . . 2 . . . . . . . . . Scan Component 8 | . . . 1 1 . . . . . . . . . . . 4 . 1 . . . 1 . . . . . . . . . Repair 7 | . . . 1 1 . . . . . . . . . . . 3 . 1 . . . 1 . . . . . . . . . Recycling Unit Hacks 14 | . . . 3 . . 4 . . . . . . . 1 . . . 2 . 1 . 2 . 1 . . . . . . . Process 1 | . . . 1 . . . . . . . . . . . . . . . . . . . . . . . . . . . . Report Inventory 8 | . . . 1 . . 3 . . . . . . . 1 . . . 1 . 1 . 1 . . . . . . . . . Retrieve Matter 1 | . . . 1 . . . . . . . . . . . . . . . . . . . . . . . . . . . . Retrieve Components 4 | . . . . . . 1 . . . . . . . . . . . 1 . . . 1 . 1 . . . . . . . Scanalyzer 20 | . . . 6 . . . . . . . . . . . . 3 . . . . . 2 . . . 1 . 5 1 . 2 Insert Component 8 | . . . 3 . . . . . . . . . . . . 1 . . . . . 1 . . . . . 3 . . . Analyze 5 | . . . 2 . . . . . . . . . . . . 1 . . . . . 1 . . . . . 1 . . . Retrieve Study 7 | . . . 1 . . . . . . . . . . . . 1 . . . . . . . . . 1 . 1 1 . 2 Garrison Access Hacks 25 | . . . . 1 . . . 1 . 2 . 2 . 1 . 1 . 2 . 2 . 4 . 2 . 4 . . 1 . 2 Unlock Access 10 | . . . . 1 . . . . . 1 . 1 . 1 . 1 . . . 1 . 1 . 1 . 1 . . 1 . . Seal Access 5 | . . . . . . . . 1 . . . . . . . . . 1 . . . 1 . . . 1 . . . . 1 Coupler Status 10 | . . . . . . . . . . 1 . 1 . . . . . 1 . 1 . 2 . 1 . 2 . . . . 1 Unauthorized Hacks 41 | . . . 6 3 1 10 . . . 1 . 1 . . . 3 . 1 . 3 1 5 2 1 . 1 . 1 1 . . Terminals 28 | . . . 6 3 1 7 . . . 1 . . . . . 1 . 1 . . 1 2 2 1 . . . 1 1 . . Track 2 | . . . . 1 . . . . . . . . . . . . . . . . . . 1 . . . . . . . . Assimilate 3 | . . . . . . . . . . 1 . . . . . . . . . . . 1 . . . . . . 1 . . Botnet 14 | . . . 2 2 1 2 . . . . . . . . . 1 . 1 . . 1 1 1 1 . . . 1 . . . Skim 9 | . . . 4 . . 5 . . . . . . . . . . . . . . . . . . . . . . . . . Fabricators 3 | . . . . . . . . . . . . . . . . 2 . . . 1 . . . . . . . . . . . Liberate 1 | . . . . . . . . . . . . . . . . 1 . . . . . . . . . . . . . . . Haulers 1 | . . . . . . . . . . . . . . . . . . . . 1 . . . . . . . . . . . Recompile 1 | . . . . . . . . . . . . . . . . 1 . . . . . . . . . . . . . . . Repair Stations . | . . . . . . . . . . . . . . . . . . . . . . . . . . . . . . . . Recycling Units 8 | . . . . . . 3 . . . . . . . . . . . . . 1 . 3 . . . 1 . . . . . Reject 1 | . . . . . . . . . . . . . . . . . . . . . . 1 . . . . . . . . . Recyclers 2 | . . . . . . . . . . . . . . . . . . . . 1 . 1 . . . . . . . . . Mask 2 | . . . . . . . . . . . . . . . . . . . . . . 1 . . . 1 . . . . . Tunnel 3 | . . . . . . 3 . . . . . . . . . . . . . . . . . . . . . . . . . Scanalyzers . | . . . . . . . . . . . . . . . . . . . . . . . . . . . . . . . . Garrison Access 2 | . . . . . . . . . . . . 1 . . . . . . . 1 . . . . . . . . . . . Reprogram 1 | . . . . . . . . . . . . 1 . . . . . . . . . . . . . . . . . . . Eject 1 | . . . . . . . . . . . . . . . . . . . . 1 . . . . . . . . . . . Data Cores Recovered 2 | . . . 2 . . . . . . . . . . . . . . . . . . . . . . . . . . . . Used 1 | . . . 1 . . . . . . . . . . . . . . . . . . . . . . . . . . . . Hacking Detections 127 | . 4 . 8 5 3 7 . 3 . 6 2 3 4 6 . 10 2 8 . 2 2 12 2 3 2 7 2 9 6 2 7 Full Trace Events 4 | . 1 . . . . . . . . . . . . 1 . . . . . . . 2 . . . . . . . . . Feedback Events . | . . . . . . . . . . . . . . . . . . . . . . . . . . . . . . . . Feedback Blocked . | . . . . . . . . . . . . . . . . . . . . . . . . . . . . . . . . Robot Schematics Acquired 3 | . . . . 2 . . . . . . . . . . . . . . . . . . . . . . . . 1 . . Robots Built . | . . . . . . . . . . . . . . . . . . . . . . . . . . . . . . . . Authchips . | . . . . . . . . . . . . . . . . . . . . . . . . . . . . . . . . Time . | . . . . . . . . . . . . . . . . . . . . . . . . . . . . . . . . Total Robot Build Rating . | . . . . . . . . . . . . . . . . . . . . . . . . . . . . . . . . Part Schematics Acquired 47 | . 1 . 1 . . 3 . 7 . . . . . . . 1 . . . . . 1 . . . . . 1 32 . . Parts Built 3 | . . . . . . . . 1 . . . . . . . . . 2 . . . . . . . . . . . . . Authchips 3 | . . . . . . . . 1 . . . . . . . . . 2 . . . . . . . . . . . . . Time 306 | . . . . . . . . 84 . . . . . . . . . 222 . . . . . . . . . . . . . Total Part Build Rating 22 | . . . . . . . . 4 . . . . . . . . . 18 . . . . . . . . . . . . . Part Studies Acquired 7 | . . . 1 . . . . . . . . . . . . 1 . . . . . . . . . 1 . 1 1 . 2 Parts Repaired 7 | . . . 1 1 . . . . . . . . . . . 3 . 1 . . . 1 . . . . . . . . . Time 348 | . . . 26 32 . . . . . . . . . . . 238 . 26 . . . 26 . . . . . . . . . Parts Recycled . | . . . . . . . . . . . . . . . . . . . . . . . . . . . . . . . . Recycled Matter 191 | . . . 191 . . . . . . . . . . . . . . . . . . . . . . . . . . . . Retrieved Matter 191 | . . . 191 . . . . . . . . . . . . . . . . . . . . . . . . . . . . Retrieved Components 13 | . . . . . . 6 . . . . . . . . . . . 3 . . . 2 . 2 . . . . . . . Parts Scanalyzed 6 | . . . 2 . . . . . . . . . . . . 1 . . . . . 1 . . . . . 2 . . . Part Schematics Acquired 4 | . . . 1 . . . . . . . . . . . . 1 . . . . . 1 . . . . . 1 . . . Parts Damaged 1 | . . . . . . . . . . . . . . . . . . . . . . 1 . . . . . . . . . Bothacking | -11 -10 -10 -9 -9 -9 -9 -9 -6 -6 -6 -6 -6 -6 -5 -5 -5 -5 -4 -4 -4 -4 -4 -4 -4 -4 -3 -3 -3 -3 -3 -2 ------------ Run | Yrd Mat Min Mat Sto Gar Rec Scr Fac Was Fac Gar Fac Gar Fac Was Fac Gar Fac Was Fac Gar Fac Gar Fac Gar Res Gar Res Qua Gar Res Used RIF Installer 8 | . . . . . 1 . . . . . 1 . 1 . . . 1 . . . 1 . 1 . 1 . 1 . . . . Command Fork 2 | . . . . . . . . . . . 1 . 1 . . . . . . . . . . . . . . . . . . Signal Jammer 1 | . . . . . . . . . . . . . . . . . . . . . . . 1 . . . . . . . . Zone Cloak 1 | . . . . . . . . . . . . . . . . . . . . . . . . . . . 1 . . . . Watcher Feeds 1 | . . . . . . . . . . . . . . . . . 1 . . . . . . . . . . . . . . Patrol Navigation 1 | . . . . . . . . . . . . . . . . . . . . . 1 . . . . . . . . . . Alert ID Control 1 | . . . . . . . . . . . . . . . . . . . . . . . . . 1 . . . . . . Robots Hacked 175 | . . . 1 . 6 4 2 4 6 3 3 . 16 12 5 5 12 4 . 1 13 6 13 3 13 4 11 6 9 . 13 Non-combat 50 | . . . 1 . 1 1 1 4 . 3 . . . 5 . 5 . 4 . . . 6 1 . . 1 . 4 7 . 6 Combat 125 | . . . . . 5 3 1 . 6 . 3 . 16 7 5 . 12 . . 1 13 . 12 3 13 3 11 2 2 . 7 Robot Hacks Applied 206 | . . . 1 . 6 4 2 7 7 4 3 . 17 12 5 7 13 5 . 1 13 6 16 4 13 7 12 8 16 . 17 parse_system 15 | . . . 1 . 1 2 2 . 1 . . . 1 . . . 1 . . . 1 . . . 1 1 3 . . . . generate_echo 1 | . . . . . . . . . . . . . . . . . . . . . . . . . . . . 1 . . . find_chute 3 | . . . . . . . . 1 . . . . . 1 . . . 1 . . . . . . . . . . . . . deconstruct_machine 1 | . . . . . . . . . . . . . . 1 . . . . . . . . . . . . . . . . . ignore_repairs 4 | . . . . . . . . . . . . . . . . . . . . . . 1 . . . . . 1 2 . . map_walls 1 | . . . . . . . . . . 1 . . . . . . . . . . . . . . . . . . . . . map_earth 1 | . . . . . . . . . . . . . . . . 1 . . . . . . . . . . . . . . . find_fabricator 3 | . . . . . . . . 1 . . . . . . . 1 . 1 . . . . . . . . . . . . . drop_inventory 16 | . . . . . . . . 2 . 1 . . . . . 3 . 1 . . . 2 . . . . . 3 1 . 3 locate_stockpiles 1 | . . . . . . . . . . . . . . . . . . . . . . . . . . . . 1 . . . ignore_parts 3 | . . . . . . . . . . . . . . . . . . . . . . . . . . . . . 1 . 2 purge_threat 9 | . . . . . . . . . . . . . . . . . . . . . . . 2 . . 2 . . 2 . 3 reprogram_traps 1 | . . . . . . . . . . . . . . . . . . . . . . . . . . 1 . . . . . block_reporting 5 | . . . . . . . . . . . . . . . . . . 1 . . . 1 . . . 1 . . 1 . 1 map_route 3 | . . . . . . . . . . 1 . . . . . . . . . . . . . . . . . . 1 . 1 locate_prototypes 1 | . . . . . . . . . . . . . . . . . . . . . . . . . . . . . 1 . . report_schematics 3 | . . . . . . . . . . . . . . . . . . . . . . . . . . . . . 3 . . report_analyses 1 | . . . . . . . . . . . . . . . . . . . . . . . . . . . . . 1 . . ignore_targets 11 | . . . . . . . . . 6 . . . . . 5 . . . . . . . . . . . . . . . . link_fov 2 | . . . . . . . . . . 1 . . . . . 1 . . . . . . . . . . . . . . . scatter_targeting 4 | . . . . . . . . . . . . . . . . . . . . . 1 . . 1 2 . . . . . . mark_system 1 | . . . . . . . . . . . . . . . . . . . . . . . . 1 . . . . . . . spike_heat 1 | . . . . . . . . . . . . . . . . . . . . . . . 1 . . . . . . . . overload_power 4 | . . . . . . . . . . . . . 1 . . . . . . . . 1 . . . . 1 . . . 1 amplify_resonance 7 | . . . . . . 1 . . . . . . 1 . . . 1 1 . . . . 1 . 2 . . . . . . wipe_record 2 | . . . . . . . . . . . . . . . . . . . . . . . . . . . 1 . . . 1 disable_weapons 4 | . . . . . . . . . . . . . . 1 . . 1 . . . . . 1 . 1 . . . . . . reboot_system 7 | . . . . . 1 . . . . . . . 1 . . . . . . . 1 . 1 1 . . . . . . 2 overwrite_iff 22 | . . . . . . . . . . . 2 . 7 1 . . . . . . 3 . 1 . 5 . . 1 . . 2 streamctrl_high 1 | . . . . . . . . . . . . . . . . . 1 . . . . . . . . . . . . . . formatsys_low 9 | . . . . . . . . 3 . . . . . 1 . 1 . . . . . . 1 . . . . . 3 . . formatsys_high 59 | . . . . . 4 1 . . . . 1 . 6 7 . . 9 . . 1 7 1 8 1 2 2 7 1 . . 1 Relay Couplers Released 155 | . . . . . 14 . . 2 . . 9 . 28 . . . 20 . . 4 20 . 20 . 15 . 16 . . 5 2 Ejected 4 | . . . . . . . . . . . . . . . . . . . . 4 . . . . . . . . . . . Machine Destruction 147 | . . . . . 14 . . 2 . . 9 . 28 . . . 20 . . . 16 . 20 . 15 . 16 . . 5 2 Programmers 4 | . . . . . . . . . . . . . . . . . . . . . 4 . . . . . . . . . . Attached 79 | . . . . . 3 . . 3 1 1 2 . 16 2 1 . 8 1 . 2 8 1 9 1 5 1 7 1 2 2 2 Fabnet Peak Effective % . | . . . . . . . . . . . . . . . . . . . . . . . . . . . . . . . . Robots Rewired 46 | . . . . . 6 9 . 1 . . 3 . 10 . . . 3 . . . 6 . 2 . . . 6 . . . . Allies Hacked 12 | . . . . . . . . 1 . . . . 3 . . 1 . . . . . . . 2 2 . 1 . 1 . 1 Hacks Repelled . | . . . . . . . . . . . . . . . . . . . . . . . . . . . . . . . . Allies | -11 -10 -10 -9 -9 -9 -9 -9 -6 -6 -6 -6 -6 -6 -5 -5 -5 -5 -4 -4 -4 -4 -4 -4 -4 -4 -3 -3 -3 -3 -3 -2 -------- Run | Yrd Mat Min Mat Sto Gar Rec Scr Fac Was Fac Gar Fac Gar Fac Was Fac Gar Fac Was Fac Gar Fac Gar Fac Gar Res Gar Res Qua Gar Res Total Allies 186 | . . 1 1 . 10 10 . 4 1 1 7 . 28 14 1 5 17 . . 1 23 1 17 1 13 3 17 2 5 . 3 Largest Group 15 | . . 1 1 1 6 13 12 9 1 1 6 5 10 15 6 7 7 3 . 1 10 9 10 11 8 3 12 12 5 . 2 Highest-Rated Group 698 | . . 31 44 44 81 191 159 153 41 26 192 163 545 681 299 371 257 121 . 47 473 387 639 685 428 145 600 698 133 . 116 Highest-Rated Ally 119 | . . 31 44 44 36 34 34 41 41 26 38 38 119 119 119 119 119 46 . 47 49 49 119 119 80 80 119 119 49 . 64 Total Orders 96 | . . . . . 2 1 . 1 . . . . 10 2 . 1 4 . . . 2 4 2 . . . 7 . 12 . 48 STAY 32 | . . . . . 1 . . 1 . . . . 7 1 . . 2 . . . 1 2 1 . . . 4 . 6 . 6 ROAM 1 | . . . . . . . . . . . . . . . . . . . . . . . . . . . . . . . 1 FOLLOW 19 | . . . . . 1 . . . . . . . 3 1 . . 2 . . . 1 2 1 . . . 3 . 4 . 1 AID 2 | . . . . . . . . . . . . . . . . . . . . . . . . . . . . . 2 . . PICKUP 2 | . . . . . . 1 . . . . . . . . . 1 . . . . . . . . . . . . . . . EXPLORE 32 | . . . . . . . . . . . . . . . . . . . . . . . . . . . . . . . 32 RETURN 8 | . . . . . . . . . . . . . . . . . . . . . . . . . . . . . . . 8 Ally Attacks 1107 | . . . . 19 85 7 25 36 19 . 12 9 103 69 15 33 111 11 . . 88 29 52 44 124 51 87 59 8 . 11 Total Damage 32865 | . . . . 331 1198 136 393 1342 945 . 411 362 2902 2772 738 788 2104 159 . . 2474 935 1544 2030 4245 1870 2857 1928 . . 401 Kills 207 | . . . . 4 12 2 6 13 . . 3 3 15 22 1 9 15 2 . . 16 4 13 13 22 3 12 16 . . 1 Allies Corrupted 9 | . . . . . 1 . . . . . . . 1 . . . . . . . 4 . . 1 . . . 1 . . 1 Allies Melted 2 | . . . . . . . . . . . . . . . . . 1 . . . . . . . . . 1 . . . . Intel | -11 -10 -10 -9 -9 -9 -9 -9 -6 -6 -6 -6 -6 -6 -5 -5 -5 -5 -4 -4 -4 -4 -4 -4 -4 -4 -3 -3 -3 -3 -3 -2 ------- Run | Yrd Mat Min Mat Sto Gar Rec Scr Fac Was Fac Gar Fac Gar Fac Was Fac Gar Fac Was Fac Gar Fac Gar Fac Gar Res Gar Res Qua Gar Res Active Infowar (turns) 22013 | 30 266 895 1326 180 . . . . . 422 517 359 1572 299 111 640 1393 655 25 167 1181 922 1157 493 1539 910 1737 643 1116 422 3036 Optics 19245 | . . . . . . . . . . 355 517 359 1572 299 111 640 1393 655 25 167 1181 922 1157 493 1539 910 1737 639 1116 422 3036 Sensors 6004 | . . . . . . . . . . . . . . . . 93 120 294 25 167 10 888 7 469 2 532 1 556 887 . 1953 Terrain 50 | . . . . . . . . . . . . . . . . . . . . . . . . . . . . . 50 . . Structural 3423 | . . . . . . . . . . 67 53 3 . . . 25 . 181 . . . . . 5 . 773 1 344 586 . 1385 Seismic 3163 | 30 266 895 1326 180 . . . . . 351 115 . . . . . . . . . . . . . . . . . . . . T.N.C. 2 | . . . . . . . . . . . . . . . . . 2 . . . . . . . . . . . . . . Triangulation 371 | . . . . . . . . . . . . . . . . . . . . . . . . . . . . 147 18 51 155 Cloaking 2 | . . . . . . . . . . . . . . . . . . . . . 2 . . . . . . . . . . Jamming 678 | . . . . . . . . . . . 255 10 295 118 . . . . . . . . . . . . . . . . . ID Mask 17 | . . . . . . . . . . . . . . . . . . . . . . . . . . . . . . . 17 Robot Analysis Total 2 | . 2 . . . . . . . . . . . . . . . . . . . . . . . . . . . . . . Derelict Logs Recovered 2 | . . 2 . . . . . . . . . . . . . . . . . . . . . . . . . . . . . Drone Launches 47 | . . . . . . . . . . . . . . . . . . . . . . . . . . . . . . . 47 Drone Recoveries 33 | . . . . . . . . . . . . . . . . . . . . . . . . . . . . . . . 33 Exploration | -11 -10 -10 -9 -9 -9 -9 -9 -6 -6 -6 -6 -6 -6 -5 -5 -5 -5 -4 -4 -4 -4 -4 -4 -4 -4 -3 -3 -3 -3 -3 -2 ------------- Run | Yrd Mat Min Mat Sto Gar Rec Scr Fac Was Fac Gar Fac Gar Fac Was Fac Gar Fac Was Fac Gar Fac Gar Fac Gar Res Gar Res Qua Gar Res Turns Passed 29405 | 165 446 908 1326 501 1665 1204 2213 994 217 810 530 359 1572 299 111 640 1393 655 25 167 1230 922 1157 493 1539 910 1737 643 1116 422 3036 Spaces Moved 25587 | 106 308 738 680 246 812 512 995 480 108 1148 730 398 1823 483 106 856 2136 961 74 321 1377 1054 1154 509 1511 758 1544 751 1146 312 1450 Core 39 | 19 . . . . . . . . . . . . . . . . . . . . . . . . . . . . . . 20 Treads 183 | . . . 107 . . . . . . . . . . . . . . . . . . . . . 76 . . . . . . Legs 1456 | . . . . . . . . . . . . . . . . . . . . . . . . . 72 83 . . . . 1301 Wheels 4985 | 87 308 738 573 246 812 512 995 480 108 126 . . . . . . . . . . . . . . . . . . . . . Hover 14563 | . . . . . . . . . . . . . . 96 106 856 2136 961 74 321 1377 1054 1154 509 1362 675 1544 751 1146 312 129 Flight 4361 | . . . . . . . . . . 1022 730 398 1823 387 . . . . . . . . . . 1 . . . . . . Fastest Speed 5 | 50 95 105 105 150 135 135 210 107 120 5 5 23 11 24 34 32 15 33 34 34 31 45 50 50 48 48 50 44 44 49 102 Average Speed 72 | 91 107 107 131 150 147 199 210 141 130 43 22 57 34 28 34 32 34 36 34 34 45 51 54 76 67 57 64 51 53 80 121 Slowest Speed 460 | 100 120 120 240 150 150 210 210 240 135 192 23 109 106 104 34 34 96 100 34 34 124 118 135 128 460 137 137 137 178 174 350 Overloaded Moves 124 | . . . . . . . . . . 28 16 . 9 . . . 10 14 . . 23 22 . . . . . . . . 2 Propulsion Burnouts . | . . . . . . . . . . . . . . . . . . . . . . . . . . . . . . . . Robots Hopped 9 | . . . . . . . . . . 6 . 2 . 1 . . . . . . . . . . . . . . . . . Potential Cave-ins 4 | . . . . . . . . . . . . . . . . . . . . . . . . . . . . . 4 . . Cave-ins Triggered . | . . . . . . . . . . . . . . . . . . . . . . . . . . . . . . . . Teleports 13 | . . . . . . . . . . . . . . . . . . . . . . . . . . . . . . 4 9 Exploration Rate (%) 55 | 6 43 96 53 56 95 80 55 12 81 25 88 9 97 15 80 18 95 24 77 11 80 25 95 21 94 21 90 25 93 42 60 Regions Visited 31 Branch Regions 5 Pre-discovered Areas 8 | . . 2 . . . 6 . . . . . . . . . . . . . . . . . . . . . . . . . Known Exits Taken 11 | . . . 1 1 . . . . . 1 . 1 . . . 1 . . . 1 . 1 . 1 . 1 . 1 1 . . Unknown Exits Taken 5 | 1 1 1 . . . 1 1 . . . . . . . . . . . . . . . . . . . . . . . . Scrap Searched 1 | . . 1 . . . . . . . . . . . . . . . . . . . . . . . . . . . . . Spaces Dug 430 | . 10 37 . 17 10 . . . . 21 43 . 34 . . 5 4 7 . 1 4 10 7 . 3 1 7 1 12 127 69 Terrain Destroyed 1787 | . 41 47 83 20 12 . . 35 . 47 202 . 46 . . 5 23 27 . 1 49 10 99 2 12 10 116 5 29 148 718 Melee 70 | . . . . . . . . . . 14 5 . 7 . . 5 . 1 . 1 1 8 7 . . . . . . . 21 Projectile 181 | . 1 . 2 4 . . . . . . . . . . . . 23 13 . . 14 2 10 2 12 10 8 5 29 6 40 AOE 1536 | . 40 47 81 16 12 . . 35 . 33 197 . 39 . . . . 13 . . 34 . 82 . . . 108 . . 142 657 Terrain Rammed . | . . . . . . . . . . . . . . . . . . . . . . . . . . . . . . . . Walls Destroyed . | . . . . . . . . . . . . . . . . . . . . . . . . . . . . . . . . Machines Disabled . | . . . . . . . . . . . . . . . . . . . . . . . . . . . . . . . . Actions | -11 -10 -10 -9 -9 -9 -9 -9 -6 -6 -6 -6 -6 -6 -5 -5 -5 -5 -4 -4 -4 -4 -4 -4 -4 -4 -3 -3 -3 -3 -3 -2 --------- Run | Yrd Mat Min Mat Sto Gar Rec Scr Fac Was Fac Gar Fac Gar Fac Was Fac Gar Fac Was Fac Gar Fac Gar Fac Gar Res Gar Res Qua Gar Res Total 34518 | 139 379 834 1030 349 1118 680 1113 691 160 1409 998 505 2589 615 175 1207 2651 1234 73 369 1848 1380 1586 600 1929 1203 2238 985 1555 439 2437 Wait 4709 | 3 16 62 170 46 61 140 94 71 17 157 113 88 418 53 53 306 283 193 . 29 190 222 194 57 133 321 435 132 196 17 439 Move 25547 | 105 307 737 679 246 811 511 994 480 107 1136 729 394 1822 481 105 856 2135 961 73 320 1376 1053 1153 508 1510 758 1543 750 1146 311 1450 Hop 8 | . . . . . . . . . . 6 . 1 . 1 . . . . . . . . . . . . . . . . . Pick Up 338 | 8 14 6 33 7 12 2 4 14 1 10 11 . 12 2 3 7 10 9 . 4 13 6 14 5 28 16 17 6 23 6 35 Fast Attach 307 | 6 . 1 8 5 1 . 4 17 1 9 6 5 19 14 . 5 24 8 . 2 11 7 17 2 25 3 12 16 7 14 58 Attach 187 | 1 . 1 3 . . 1 . 2 1 11 3 1 5 3 . 1 4 12 . . 8 6 15 2 16 15 14 8 8 9 37 Detach 84 | . . . . 1 . . . . 1 3 2 1 1 1 . . 2 8 . . 4 3 6 . 8 6 4 5 3 7 18 Swap 390 | . 9 4 20 7 14 3 6 17 1 2 5 1 25 5 3 3 18 10 . 2 28 15 12 3 35 21 19 10 34 9 49 Drop 519 | . 10 7 33 15 13 1 7 21 5 20 13 3 23 14 3 11 31 7 . 5 22 7 18 7 43 21 18 19 30 11 81 Fire 1441 | 16 23 16 52 22 116 22 2 58 19 3 13 . 47 32 6 11 108 23 . 2 123 21 97 16 78 40 106 39 107 42 181 Melee 440 | . . . 1 . . . 2 11 7 38 66 11 91 9 2 7 9 3 . 5 27 16 10 . 40 . 4 . 1 . 80 Ram 1 | . . . . . . . . . . . . . . . . . . . . . . 1 . . . . . . . . . Kick 2 | . . . . . . . . . . . . . . . . . . . . . . . . . . . . . . . 2 Crush . | . . . . . . . . . . . . . . . . . . . . . . . . . . . . . . . . Escape Stasis 404 | . . . . . 40 . . . . . 36 . 125 . . . 26 . . . 46 . 50 . 13 . 55 . . 13 . Rewire 53 | . . . . . 50 . . . . . . . 1 . . . . . . . . . . . . . 2 . . . . Trap 82 | . . . 31 . . . . . . 14 1 . . . . . 1 . . . . 23 . . . 2 9 . . . 1 Miscellaneous 6 | . . . . . . . . . . . . . . . . . . . . . . . . . . . . . . . 6 Route ------- -11/Scrapyard -10/Materials (discovered 3 exits: *Mat / *Min / [*Sub]) -10/Mines (discovered 2 exits: *Mat / [*Sub]) -9/Materials (discovered 5 exits: [*Mat] / *Min x2 / *Sto x2) -9/Storage (discovered 2 exits: Rec / Gar) -9/Garrison (discovered 3 exits: *Rec x3) -9/Recycling (discovered 2 exits: [*Fac] / *Scr) -9/Scraptown -6/Factory -6/Waste -6/Factory (discovered 3 exits: *Fac / [*Low] / Gar) -6/Garrison (discovered 3 exits: *Fac x3) -6/Factory -6/Garrison (discovered 3 exits: *Fac x3) -5/Factory (discovered 2 exits: *Fac / Gar) -5/Waste -5/Factory (discovered 2 exits: [*Ext] / Gar) -5/Garrison (discovered 3 exits: *Fac x3) -4/Factory (discovered 2 exits: *Res / *Upp) -4/Waste -4/Factory (discovered 2 exits: *Upp / Gar) -4/Garrison (discovered 4 exits: *Res x3 / *Fac) -4/Factory -4/Garrison (discovered 4 exits: *Res x3 / *Fac) -4/Factory (discovered 3 exits: *Res / *Upp / Gar) -4/Garrison (discovered 3 exits: *Res x3) -3/Research -3/Garrison (discovered 4 exits: *Res x4) -3/Research (discovered 5 exits: *Res x2 / Arm / *Qua x2) -3/Quarantine (discovered 2 exits: *Res / Gar) -3/Garrison -2/Research (discovered 1 exit: [*Acc]) History --------- Turn | Location | Event 3 | -11/Scrapyard | Discovered new exit (range 15) 166 | -11/Scrapyard | Entered Materials 199 | -10/Materials | Found Botcube 268 | -10/Materials | Discovered new exit (range 9) 310 | -10/Materials | Build established: Mutant 314 | -10/Materials | Discovered new exit (range 4) 580 | -10/Materials | Discovered new exit (range 6) 612 | -10/Materials | Entered Mines 613 | -10/Mines | Assembled infested the area 618 | -10/Mines | Found the Drone Emporium 618 | -10/Mines | Assisted by a Guerilla fighting off Assembled 628 | -10/Mines | Found Prototype Device 676 | -10/Mines | Learned location of Recycling (-9) 773 | -10/Mines | Core integrity fell below 50% 1160 | -10/Mines | Met a Derelict testing a Signal Generator 1165 | -10/Mines | Found Signal Generator 1306 | -10/Mines | Learned location of Zion (-7) 1317 | -10/Mines | Received a Rocket Launcher from a helpful Derelict 1324 | -10/Mines | Discovered new exit (range 13) 1341 | -10/Mines | Met a Derelict shopkeep closing up shop 1345 | -10/Mines | Core integrity fell below 20% 1430 | -10/Mines | Discovered new exit (range 6) 1520 | -10/Mines | Entered Materials 1520 | -9/Materials | Evolved 2 slots: Propulsion x1, Utility x1 1572 | -9/Materials | Repaired Assault Rifle 1684 | -9/Materials | Discovered new exit (range 15) 1713 | -9/Materials | Discovered new exit (range 9) 1879 | -9/Materials | Destroyed 18 combat bots 1904 | -9/Materials | Identified Decoy Drone Bay 1904 | -9/Materials | Central database locked down 1920 | -9/Materials | First assault squad dispatched 2363 | -9/Materials | Discovered new exit (range 16) 2444 | -9/Materials | Identified exit to Mines 2444 | -9/Materials | Identified exit to Storage 2608 | -9/Materials | Botcube activated 2632 | -9/Materials | Botcube completed mutation into treaded form, armed with 2 guns. 2846 | -9/Materials | Entered Storage 2846 | -9/Storage | Accompanied by 1 ally 3186 | -9/Storage | Discovered new exit (range 19) 3262 | -9/Storage | Repaired Hrd. Light Armor Plating 3284 | -9/Storage | Garrison activated, responded to threat 3347 | -9/Storage | Identified exit to Garrison 3347 | -9/Storage | Entered Garrison 3347 | -9/Garrison | Accompanied by 1 ally 3421 | -9/Garrison | Triggered checkpoint 3464 | -9/Garrison | Garrison Relay disabled 3904 | -9/Garrison | Build established: Commander-Mutant 3923 | -9/Garrison | Triggered checkpoint 4063 | -9/Garrison | Discovered new exit (range 14) 4121 | -9/Garrison | Triggered checkpoint 4153 | -9/Garrison | Garrison Relay disabled 4180 | -9/Garrison | Installed Relay Interface Framework 4199 | -9/Garrison | Triggered checkpoint 4285 | -9/Garrison | Triggered checkpoint 4385 | -9/Garrison | Garrison Relay disabled 4393 | -9/Garrison | Triggered checkpoint 4481 | -9/Garrison | Build established: Bothacker-Mutant 4511 | -9/Garrison | Discovered new exit (range 9) 4547 | -9/Garrison | Triggered checkpoint 4803 | -9/Garrison | Triggered checkpoint 4843 | -9/Garrison | Lost 4 allies 4876 | -9/Garrison | Discovered new exit (range 10) 4899 | -9/Garrison | Triggered checkpoint 4943 | -9/Garrison | Garrison Relay disabled 5012 | -9/Garrison | Entered Recycling 5012 | -9/Recycling | Accompanied by 4 allies 5013 | -9/Recycling | Met a Zionite searching for Scraptown 5413 | -9/Recycling | Learned Storage emergency access door positions 5455 | -9/Recycling | Build established: Commander-Mutant 5469 | -9/Recycling | Learned 2 Storage zone layouts 5479 | -9/Recycling | Learned location of 3 exits from Materials 5498 | -9/Recycling | Learned location of Mines (-8) 5527 | -9/Recycling | Learned Storage emergency access door positions 5536 | -9/Recycling | Discovered new exit (range 7) 6116 | -9/Recycling | Scanned before Scraplab entrance 6149 | -9/Recycling | Entered Scraplab 6167 | -9/Recycling | Discovered new exit (range 3) 6216 | -9/Recycling | Entered Scraptown 6216 | -9/Scraptown | Accompanied by 12 allies 6216 | -9/Scraptown | System corruption cleaned by C-Scrubber 6296 | -9/Scraptown | Visited Fellowship of the Rings 6313 | -9/Scraptown | Visited Science Testing Area 6380 | -9/Scraptown | Visited Cyclists 6470 | -9/Scraptown | Visited The Evicted 6501 | -9/Scraptown | Visited CR-KLE's Repair Center 6543 | -9/Scraptown | Heard Great Nut preacher, LISTEN AND RECITE! 6554 | -9/Scraptown | Discovered new exit (range 11) 6843 | -9/Scraptown | Received an X-ray algorithm 7072 | -9/Scraptown | Turned away by UFD registrar 7238 | -9/Scraptown | Visited Artisan Demo Area 8179 | -9/Scraptown | CR-KLE repaired 7 parts 8398 | -9/Scraptown | Attacked by Scraptown defenders 8429 | -9/Scraptown | Entered Factory 8429 | -6/Factory | Accompanied by 8 allies 8429 | -6/Factory | Evolved 6 slots: Power x1, Propulsion x2, Utility x3 8444 | -6/Factory | Lost 3 allies 8550 | -6/Factory | Lost 3 allies 8841 | -6/Factory | Tech Extrapolator generated special schematic: Deep Structural Scanner 8988 | -6/Factory | Build established: Scavenger-Mutant 9145 | -6/Factory | Lost 3 parts (2p1u) 9284 | -6/Factory | Fabricated Deep Structural Scanner? 9423 | -6/Factory | Sucked down chute 9423 | -6/Factory | Entered Waste 9423 | -6/Waste | Met up with 1 ally sucked down the chute earlier 9438 | -6/Waste | EMP discharged 9451 | -6/Waste | Spotted C-40 Crusher 9471 | -6/Waste | Spotted C-40 Crusher 9478 | -6/Waste | Destroyed C-40 Crusher 9499 | -6/Waste | Destroyed C-40 Crusher 9508 | -6/Waste | Found Damper Plating 9531 | -6/Waste | Spotted C-40 Crusher 9531 | -6/Waste | Spotted C-40 Crusher 9535 | -6/Waste | Spotted C-40 Crusher 9538 | -6/Waste | EMP discharged 9562 | -6/Waste | Spotted C-40 Crusher 9612 | -6/Waste | Discovered new exit (range 12) 9638 | -6/Waste | EMP discharged 9640 | -6/Waste | Entered Factory 9866 | -6/Factory | Build established: Mutant 10021 | -6/Factory | Discovered new exit (range 6) 10450 | -6/Factory | Discovered new exit (range 16) 10450 | -6/Factory | Identified exit to Garrison 10450 | -6/Factory | Entered Garrison 10456 | -6/Garrison | Warlord forces raided the area 10476 | -6/Garrison | Triggered checkpoint 10514 | -6/Garrison | Expanded RIF knowledge: Command Fork 10517 | -6/Garrison | Garrison Relay disabled 10538 | -6/Garrison | Triggered checkpoint 10544 | -6/Garrison | Triggered checkpoint 10553 | -6/Garrison | Discovered new exit (range 5) 10565 | -6/Garrison | Phase Generator disabled 10594 | -6/Garrison | Discovered new exit (range 21) 10596 | -6/Garrison | Triggered checkpoint 10660 | -6/Garrison | Triggered checkpoint 10733 | -6/Garrison | Discovered new exit (range 9) 10741 | -6/Garrison | Garrison Relay disabled 10791 | -6/Garrison | Build established: Bothacker-Sprinter 10980 | -6/Garrison | Entered Factory 10980 | -6/Factory | Accompanied by 5 allies 11293 | -6/Factory | Build established: Bothacker-Mutant 11297 | -6/Factory | Identified exit to Garrison 11339 | -6/Factory | Entered Garrison 11339 | -6/Garrison | Accompanied by 1 ally 11353 | -6/Garrison | Garrison Relay disabled 11371 | -6/Garrison | Triggered checkpoint 11498 | -6/Garrison | System corruption reached 10% 11528 | -6/Garrison | Lost 3 parts (1n2u) 11611 | -6/Garrison | Triggered checkpoint 11744 | -6/Garrison | Discovered new exit (range 13) 11859 | -6/Garrison | Garrison Relay disabled 11863 | -6/Garrison | Garrison Relay disabled 11873 | -6/Garrison | Triggered checkpoint 11902 | -6/Garrison | Garrison Relay disabled 11967 | -6/Garrison | Triggered checkpoint 11981 | -6/Garrison | Triggered checkpoint 11993 | -6/Garrison | Triggered checkpoint 12004 | -6/Garrison | Discovered new exit (range 7) 12020 | -6/Garrison | Garrison Relay disabled 12021 | -6/Garrison | Build established: Bothacker-Sprinter 12031 | -6/Garrison | Spotted Executioner 12032 | -6/Garrison | Spotted Executioner 12039 | -6/Garrison | Garrison Relay disabled 12045 | -6/Garrison | Triggered checkpoint 12157 | -6/Garrison | Discovered new exit (range 21) 12163 | -6/Garrison | Expanded RIF knowledge: Command Fork 12197 | -6/Garrison | Triggered checkpoint 12234 | -6/Garrison | Garrison Relay disabled 12455 | -6/Garrison | Found Relay Coupler [Proto] 12456 | -6/Garrison | Found Relay Coupler [Proto] 12457 | -6/Garrison | Found Relay Coupler [Proto] 12459 | -6/Garrison | Found Relay Coupler [Proto] 12666 | -6/Garrison | Assimilated Executioner with formatsys_high 12666 | -6/Garrison | Assimilated Executioner with formatsys_high 12692 | -6/Garrison | Rewired Striker 12911 | -6/Garrison | Entered Factory 12911 | -5/Factory | Accompanied by 9 allies 12911 | -5/Factory | Evolved 2 slots: Utility x2 12940 | -5/Factory | Garrison activated, responded to threat 12946 | -5/Factory | Identified exit to Garrison 13063 | -5/Factory | Spotted B-75 Beast 13120 | -5/Factory | Assimilated Beast 6a with formatsys_high 13126 | -5/Factory | Found Prototype Processor 13126 | -5/Factory | Identified Exp. Core Analyzer 13200 | -5/Factory | Discovered new exit (range 6) 13210 | -5/Factory | Sucked down chute 13210 | -5/Factory | Entered Waste 13210 | -5/Waste | Met up with 1 ally sucked down the chute earlier 13210 | -5/Waste | Spotted C-40 Crusher 13211 | -5/Waste | Spotted C-40 Crusher 13216 | -5/Waste | Lost 4 allies 13220 | -5/Waste | Spotted C-40 Crusher 13225 | -5/Waste | EMP discharged 13238 | -5/Waste | Spotted C-40 Crusher 13246 | -5/Waste | Spotted C-40 Crusher 13248 | -5/Waste | Spotted C-40 Crusher 13254 | -5/Waste | Discovered new exit (range 12) 13321 | -5/Waste | Entered Factory 13321 | -5/Factory | Accompanied by 2 allies 13431 | -5/Factory | 11 allies followed down the chute 13436 | -5/Factory | Garrison activated, responded to threat 13542 | -5/Factory | Central database locked down 13551 | -5/Factory | Discovered new exit (range 5) 13618 | -5/Factory | Repaired Broken Antigrav Array? 13742 | -5/Factory | Repaired Cld. Aerolev Unit 13795 | -5/Factory | Repaired Corrupted Enh. Nova Cannon? 13909 | -5/Factory | Identified exit to Garrison 13961 | -5/Factory | Entered Garrison 13961 | -5/Garrison | Accompanied by 7 allies 13991 | -5/Garrison | Triggered checkpoint 13991 | -5/Garrison | Garrison Relay disabled 14004 | -5/Garrison | Garrison Relay disabled 14039 | -5/Garrison | Found Exp. Core Analyzer 14063 | -5/Garrison | Triggered checkpoint 14093 | -5/Garrison | Found Prototype Processor 14093 | -5/Garrison | Identified Exp. Targeting Computer 14106 | -5/Garrison | Lost 9 allies 14121 | -5/Garrison | Found Prototype Device 14121 | -5/Garrison | Identified Adv. Kinecellerator 14288 | -5/Garrison | Discovered new exit (range 12) 14299 | -5/Garrison | Identified exit to Factory 14324 | -5/Garrison | Garrison Relay disabled 14353 | -5/Garrison | Triggered checkpoint 14407 | -5/Garrison | Triggered checkpoint 14413 | -5/Garrison | Triggered checkpoint 14464 | -5/Garrison | Discovered exit to Factory (range 11) 14555 | -5/Garrison | Triggered checkpoint 14579 | -5/Garrison | Garrison Relay disabled 14607 | -5/Garrison | Triggered checkpoint 14729 | -5/Garrison | Discovered exit to Factory (range 11) 14758 | -5/Garrison | Spotted B-75 Beast 14820 | -5/Garrison | Destroyed B-75 Beast 14910 | -5/Garrison | Garrison Relay disabled 14928 | -5/Garrison | Expanded RIF knowledge: Watcher Feeds 14937 | -5/Garrison | Triggered checkpoint 15031 | -5/Garrison | Triggered checkpoint 15202 | -5/Garrison | Lost 5 allies 15327 | -5/Garrison | Build established: Scavenger-Mutant 15354 | -5/Garrison | Entered Factory 15354 | -4/Factory | Accompanied by 3 allies 15354 | -4/Factory | Evolved 2 slots: Utility x2 15534 | -4/Factory | Discovered new exit (range 22) 15649 | -4/Factory | Fabricated Graviton Cannon? 15649 | -4/Factory | Discovered new exit (range 22) 15663 | -4/Factory | Identified exit to Research 15693 | -4/Factory | Repaired Cld. Aerolev Unit 15873 | -4/Factory | Fabricated Graviton Cannon? 16009 | -4/Factory | Sucked down chute 16009 | -4/Factory | Entered Waste 16012 | -4/Waste | Spotted C-40 Crusher 16013 | -4/Waste | Spotted C-40 Crusher 16018 | -4/Waste | Spotted C-40 Crusher 16024 | -4/Waste | EMP discharged 16027 | -4/Waste | Discovered new exit (range 22) 16030 | -4/Waste | Spotted C-40 Crusher 16031 | -4/Waste | Spotted C-40 Crusher 16034 | -4/Waste | Identified exit to Factory 16034 | -4/Waste | Entered Factory 16122 | -4/Factory | Discovered new exit (range 10) 16127 | -4/Factory | Identified exit to Upper Caves 16182 | -4/Factory | Identified exit to Garrison 16201 | -4/Factory | Entered Garrison 16201 | -4/Garrison | Accompanied by 1 ally 16215 | -4/Garrison | Triggered checkpoint 16220 | -4/Garrison | Discovered new exit (range 6) 16318 | -4/Garrison | Triggered checkpoint 16323 | -4/Garrison | Lost 4 allies 16325 | -4/Garrison | Garrison Relay disabled 16421 | -4/Garrison | Triggered checkpoint 16424 | -4/Garrison | Triggered checkpoint 16426 | -4/Garrison | Triggered checkpoint 16471 | -4/Garrison | Destroyed 10 combat bots 16531 | -4/Garrison | Discovered exit to Research (range 64) 16531 | -4/Garrison | Discovered exit to Research (range 12) 16531 | -4/Garrison | Discovered exit to Research (range 56) 16531 | -4/Garrison | Discovered new exit (range 57) 16541 | -4/Garrison | Triggered checkpoint 16568 | -4/Garrison | Rescued a captive Derelict 16569 | -4/Garrison | Rescued a captive Derelict 16574 | -4/Garrison | Lost 3 allies 16576 | -4/Garrison | Garrison Relay disabled 16737 | -4/Garrison | Expanded RIF knowledge: Patrol Navigation 16784 | -4/Garrison | Attached CPS modules to M-30 Cleanser. 16874 | -4/Garrison | Build established: Bothacker-Mutant 17011 | -4/Garrison | Garrison Relay disabled 17031 | -4/Garrison | Triggered checkpoint 17105 | -4/Garrison | Triggered checkpoint 17157 | -4/Garrison | Garrison Relay disabled 17378 | -4/Garrison | Identified exit to Factory 17431 | -4/Garrison | Entered Factory 17431 | -4/Factory | Accompanied by 8 allies 17720 | -4/Factory | Attached CPS modules to O-16 Technician. 17937 | -4/Factory | Build established: Commander-Scout 18150 | -4/Factory | Lost 3 allies 18308 | -4/Factory | Build established: Bothacker-Scout 18323 | -4/Factory | Repaired Broken CPS Tube 18327 | -4/Factory | System corruption reached 10% 18346 | -4/Factory | Spotted B-86 Titan 18350 | -4/Factory | Identified exit to Garrison 18353 | -4/Factory | Entered Garrison 18413 | -4/Garrison | Heavy support dispatched to Research 18450 | -4/Garrison | Destroyed 9 combat bots 18466 | -4/Garrison | Expanded RIF knowledge: Signal Jamming 18496 | -4/Garrison | Garrison Relay disabled 18519 | -4/Garrison | Triggered checkpoint 18572 | -4/Garrison | Spotted B-86 Titan 18579 | -4/Garrison | Triggered checkpoint 18584 | -4/Garrison | Triggered checkpoint 18601 | -4/Garrison | Destroyed B-86 Titan 18627 | -4/Garrison | H-XX Assembler disabled 18629 | -4/Garrison | Triggered checkpoint 18684 | -4/Garrison | Garrison Relay disabled 18698 | -4/Garrison | Discovered exit to Research (range 8) 18707 | -4/Garrison | Triggered checkpoint 18718 | -4/Garrison | Discovered new exit (range 3) 18734 | -4/Garrison | Identified exit to Factory 18785 | -4/Garrison | Triggered checkpoint 18846 | -4/Garrison | Lost 4 allies 18881 | -4/Garrison | Triggered checkpoint 18933 | -4/Garrison | Garrison Relay disabled 18954 | -4/Garrison | Discovered exit to Research (range 13) 18959 | -4/Garrison | Rescued a captive Derelict 18960 | -4/Garrison | Rescued a captive Derelict 19037 | -4/Garrison | Triggered checkpoint 19075 | -4/Garrison | Triggered checkpoint 19103 | -4/Garrison | Garrison Relay disabled 19164 | -4/Garrison | Discovered exit to Research (range 19) 19177 | -4/Garrison | Found embedded Infiltrators 19238 | -4/Garrison | Build established: Bothacker-Mutant 19269 | -4/Garrison | Rewired Striker 19273 | -4/Garrison | Rewired Executioner 19281 | -4/Garrison | Garrison Relay disabled 19510 | -4/Garrison | Entered Factory 19510 | -4/Factory | Accompanied by 10 allies 19537 | -4/Factory | Discovered exit to Upper Caves (range 11) 19774 | -4/Factory | Discovered exit to Research (range 19) 19979 | -4/Factory | Identified exit to Garrison 20003 | -4/Factory | Entered Garrison 20003 | -4/Garrison | Accompanied by 8 allies 20023 | -4/Garrison | Lost 3 allies 20058 | -4/Garrison | Spotted Executioner 20058 | -4/Garrison | Spotted Executioner 20134 | -4/Garrison | Triggered checkpoint 20182 | -4/Garrison | Lost 4 allies 20215 | -4/Garrison | Garrison Relay disabled 20353 | -4/Garrison | Triggered checkpoint 20361 | -4/Garrison | Triggered checkpoint 20373 | -4/Garrison | Triggered checkpoint 20398 | -4/Garrison | Core integrity fell below 50% 20405 | -4/Garrison | Lost 6 allies 20460 | -4/Garrison | Spotted B-86 Titan 20481 | -4/Garrison | Discovered exit to Research (range 19) 20490 | -4/Garrison | Destroyed B-86 Titan 20532 | -4/Garrison | Lost 4 allies 20599 | -4/Garrison | Triggered checkpoint 20629 | -4/Garrison | Expanded RIF knowledge: Alert ID Control 20634 | -4/Garrison | Garrison Relay disabled 20643 | -4/Garrison | Found embedded Infiltrators 20701 | -4/Garrison | Discovered exit to Research (range 5) 20781 | -4/Garrison | Garrison Relay disabled 20808 | -4/Garrison | Triggered checkpoint 20845 | -4/Garrison | Triggered checkpoint 20913 | -4/Garrison | Garrison Relay disabled 20930 | -4/Garrison | Discovered exit to Research (range 12) 21198 | -4/Garrison | Allies destroyed Executioner 21203 | -4/Garrison | Allies destroyed Executioner 21227 | -4/Garrison | Lost 3 parts (2p1n) 21232 | -4/Garrison | Found Adv. Kinecellerator 21542 | -4/Garrison | Entered Research 21542 | -3/Research | Accompanied by 2 allies 21542 | -3/Research | Evolved 2 slots: Utility x2 21713 | -3/Research | Unchained authorized (BL-1NK) 21980 | -3/Research | Attached CPS modules to BL-1NK. 22083 | -3/Research | Build established: Scavenger-Mutant 22198 | -3/Research | Destroyed BL-1NK 22220 | -3/Research | Found Blink Core 22224 | -3/Research | Found Lgt. Regenerative Plating 22279 | -3/Research | Spotted B-86 Titan 22292 | -3/Research | First assault squad dispatched 22446 | -3/Research | Identified exit to Garrison 22452 | -3/Research | Entered Garrison 22524 | -3/Garrison | Triggered checkpoint 22585 | -3/Garrison | Garrison Relay disabled 22758 | -3/Garrison | Triggered checkpoint 22765 | -3/Garrison | Discovered new exit (range 13) 22785 | -3/Garrison | Identified exit to Research 22927 | -3/Garrison | Spotted B-86 Titan 23025 | -3/Garrison | Allies destroyed B-86 Titan 23030 | -3/Garrison | Lost 3 allies 23131 | -3/Garrison | Build established: Bothacker-Mutant 23281 | -3/Garrison | Spotted Executioner 23297 | -3/Garrison | Discovered exit to Research (range 5) 23308 | -3/Garrison | Found embedded Infiltrators 23320 | -3/Garrison | Triggered checkpoint 23325 | -3/Garrison | Garrison Relay disabled 23415 | -3/Garrison | Expanded RIF knowledge: Zone Cloak 23423 | -3/Garrison | Garrison Relay disabled 23426 | -3/Garrison | Triggered checkpoint 23515 | -3/Garrison | Discovered exit to Research (range 12) 23608 | -3/Garrison | Triggered checkpoint 23621 | -3/Garrison | Build established: Botlord-Mutant 23654 | -3/Garrison | Discovered exit to Research (range 19) 23674 | -3/Garrison | Triggered checkpoint 23705 | -3/Garrison | Garrison Relay disabled 23782 | -3/Garrison | Triggered checkpoint 23949 | -3/Garrison | Destroyed Executioner 23955 | -3/Garrison | Found Exp. Core Analyzer 23963 | -3/Garrison | Rewired Executioner 24189 | -3/Garrison | Entered Research 24189 | -3/Research | Accompanied by 10 allies 24283 | -3/Research | Discovered new exit (range 13) 24322 | -3/Research | Identified exit to Research 24385 | -3/Research | Found Prototype Device 24390 | -3/Research | Identified Exp. Thermal Defense Suite 24390 | -3/Research | Central database locked down 24414 | -3/Research | Garrison activated, responded to threat 24439 | -3/Research | First assault squad dispatched 24540 | -3/Research | Found Adv. EM Shield 24541 | -3/Research | Lost 5 allies 24576 | -3/Research | Discovered exit to Research (range 23) 24656 | -3/Research | Identified exit to Armory 24656 | -3/Research | Identified exit to Quarantine 24705 | -3/Research | Found Prototype Protection 24705 | -3/Research | Identified Centrium Heavy Armor Plating 24823 | -3/Research | Build established: Botlord-Scout 24832 | -3/Research | Entered Quarantine 24832 | -3/Quarantine | Spotted Alpha 7 24882 | -3/Quarantine | Destroyed Alpha 7 24944 | -3/Quarantine | Found Corrupted Prototype Ballistic Gun 24944 | -3/Quarantine | Identified Multirail 24973 | -3/Quarantine | Found Transdimensional Reconstructor 24978 | -3/Quarantine | Found Hpw. Transdimensional Reconstructor 25013 | -3/Quarantine | Found Dimensional Node Initializer 25143 | -3/Quarantine | Found Sigix Terminator 25292 | -3/Quarantine | Found Alien Artifact 25300 | -3/Quarantine | Identified Subatomic Replicator 25304 | -3/Quarantine | Used Subatomic Replicator to replicate Blink Core 25365 | -3/Quarantine | Found Phase Redirector 25519 | -3/Quarantine | Cryocooling Duct disabled 25527 | -3/Quarantine | Cryocooling Duct disabled 25534 | -3/Quarantine | Ambient heat levels rising (+20) 25534 | -3/Quarantine | Non-combat units ordered to evacuate 25542 | -3/Quarantine | Ambient heat levels rising (+20) 25542 | -3/Quarantine | Combat units ordered to evacuate 25619 | -3/Quarantine | Found Terrabomb 25642 | -3/Quarantine | Quarantine Guard activated 25661 | -3/Quarantine | Lost 5 allies 25667 | -3/Quarantine | Found Alien Reactor 25705 | -3/Quarantine | Found Fusion Bomb Launcher 25725 | -3/Quarantine | Build established: Scavenger-Scout 25756 | -3/Quarantine | Spotted Quarantine Guard 25804 | -3/Quarantine | Spotted Quarantine Guard 25821 | -3/Quarantine | Discovered exit to Research (range 11) 25829 | -3/Quarantine | Spotted Quarantine Guard 25839 | -3/Quarantine | Core integrity fell below 50% 25844 | -3/Quarantine | Destroyed Quarantine Guard 25905 | -3/Quarantine | Spotted Quarantine Guard 25926 | -3/Quarantine | Spotted Quarantine Guard 25931 | -3/Quarantine | Spotted Quarantine Guard 25940 | -3/Quarantine | Spotted Quarantine Guard 25948 | -3/Quarantine | Identified exit to Garrison 25948 | -3/Quarantine | Entered Garrison 26000 | -3/Garrison | Triggered checkpoint 26038 | -3/Garrison | Destroyed 7 combat bots 26079 | -3/Garrison | Garrison Relay disabled 26115 | -3/Garrison | Learned Research security intel 26142 | -3/Garrison | Spotted B-86 Titan 26175 | -3/Garrison | Discovered exit to Research (range 10) 26207 | -3/Garrison | QS Assembler disabled 26213 | -3/Garrison | Destroyed 7 combat bots 26218 | -3/Garrison | Lost 3 parts (2n1u) 26254 | -3/Garrison | Build established: Scavenger-Mutant 26282 | -3/Garrison | Found Prototype Processor 26282 | -3/Garrison | Identified Exp. Signal Interpreter 26332 | -3/Garrison | Triggered checkpoint 26370 | -3/Garrison | Entered Research 26370 | -2/Research | Evolved 2 slots: Propulsion x1, Utility x1 26631 | -2/Research | Lost 7 parts (4n2u1w) 26767 | -2/Research | Found Centrium Heavy Armor Plating 26827 | -2/Research | Found Exp. Thermal Defense Suite 26864 | -2/Research | Found Exp. Melee Analysis Suite 26869 | -2/Research | Found Exp. Melee Analysis Suite 26990 | -2/Research | Found Exp. Sensor Array 27604 | -2/Research | Found Prototype Launcher 27604 | -2/Research | Identified Gui. Micro-nuke Launcher 27716 | -2/Research | Found Imp. Powered Armor 27794 | -2/Research | Build established: Bothacker-Assassin 28370 | -2/Research | First assault squad dispatched 28409 | -2/Research | Discovered new exit (range 51) 28470 | -2/Research | Destroyed 8 combat bots 28575 | -2/Research | Lost 4 parts (1n2u1w) 28746 | -2/Research | Destroyed 7 combat bots 28963 | -2/Research | Found Prototype Launcher 28963 | -2/Research | Identified Ragnarok Missile Launcher 28998 | -2/Research | Build established: Scavenger-Assassin 29020 | -2/Research | Found Unknown Device 29020 | -2/Research | Identified Launcher Loader 29112 | -2/Research | Fired Sigix Terminator 29112 | -2/Research | Destroyed CY-PHR 29344 | -2/Research | Core integrity fell below 50% 29350 | -2/Research | Core integrity fell below 20% 29378 | -2/Research | Lost 16 parts (3p3n7u3w) 29389 | -2/Research | Found ID Mask 29389 | -2/Research | ID Mask engaged 29406 | -2/Research | Destroyed by P-80 Master with Gamma Rifle Last Messages --------------- 29351_ K-01 Serf collects debris. 29353_ U-05 Engineer builds a Wall. 29355_ K-01 Serf collects debris. 29358_ U-05 Engineer builds a Wall. 29359_ K-01 Serf collects debris. 29362_ U-05 Engineer builds a Wall. 29363_ K-01 Serf collects debris. 29366_ U-05 Engineer lays Concrete. 29370_ ALERT: Unidentified disturbance in Zone 6N, assault force dispatched. 29370_ U-05 Engineer lays Concrete. 29371_ K-01 Serf collects debris. 29372_ U-05 Engineer lays Concrete. 29387_ System corrupted: Graphene Brace fused. 29389_ Acquired ID Mask. 29389_ ID Mask engaged. 29401_ Penetrated by Slug. 29403_ Exp. Targeting Computer destroyed. 29405_ Penetrated by Slug. 29405_ Slug penetrates Wall. Map ----- +----------------------------------------------------+ | ????######### ####?????????????????? | | ????????##### ####?????????????????? | | ????????##### ###########??????????? | | ????????###############################??????????? | | ????????## = =############### ##??????????? | | ????????## / ############### ##??????????? | | ????????## ############### ##??????????? | | ????????## + + ##??????????? | | ????????## # #### ##??????????? | | ????????## = # #### ##??????????? | | ????????######### !! ############??????????? | | ????????######### ! ############??????????? | | ???????????????## ##????????????????????? | | ??????#######??## ###??????????#####????? | | ??????# = #??######## ############## ####?? | | ??????# #??######## ########### ### | | ??????#] #????????## # """ # | | ??????# ########### # """ # | | ###???# ! # """"" # # # | | #"##### # ""R"" # # # | | # # " " # ; # | | # ] # # # # | | # # # # " | | + # # + " | | # | # # # " | | # # # @ #""""""" """##### | | ###+#########+### ##"""""" # | | " # | | ^ h # # | | ^ # # | | ^ ph + # | | ### #########+########## # # | | #?# #??# # ?# # # | | "?# #??# / #""""""# # #"""!!" | | "?# #### # # # ! ! | | # + = # ########## %]!| | | # #### # # " | | ### #??# % # #""""""""" | | ###+###?# #??# [#""""""" # = " | | ????????# #??# ## =" # % # | | ????????# #??# ## " # = # | | ????????# ??########### " # # | | ????????+ ????????????# " # +" | | ????????# ????????????# " # #%" | | ????????# ????????????# # + #" | | ????????# ????????????# # # # | | ????????# ????????????? # # # | | ????????# ???????????####+""" #""""""""#""""" | | ????????# ???????????# "%" | | ????????? ??????????# " | +----------------------------------------------------+ Best States ------------- Heat Dissipation 93 Coolant Potential 100 Energy Generation 53 Energy Capacity 630 Matter Stores 300 Matter Capacity 300 Sight Range 23 Robot Scan Range 20 Terrain Scan Range 24 Terrain Scan Density 10 Jamming Range 12 Power Amplification 40 Additional Mass Support 12 Corruption Block 20 Armor Coverage 1600 Resistance: TH 30 Resistance: EM 90 Core Shielding 20 Power Shielding 66 Weapon Cycling 25 Melee Speed Boost 30 Evasion (%) 65 Targeting Accuracy 12 Melee Accuracy 12 Launcher Accuracy 40 Core Analysis 8 Recoil Reduction 3 Kinecelleration 50 Offensive Hacking 20 Relay Coupler Types 5 Relay Coupler Value 102 Authchip Count 2 Trap Extractor Capacity 8 Item Schematics ----------------- Huge Storage Unit | -10/Materials | Hacked Hrd. Light Armor Plating | -9/Materials | Scanalyzed Gatling Laser | -9/Recycling | Hacked Disposable Heat Sink | -9/Recycling | Hacked Imp. Hover Unit | -9/Recycling | Hacked Mak. Leg | -6/Factory | Extrapolated Deep Structural Scanner | -6/Factory | Extrapolated Mak. Coolant Network | -6/Factory | Extrapolated Mak. Light Armor Plating | -6/Factory | Extrapolated Beamcaster | -6/Factory | Extrapolated Mak. Targeting Computer | -6/Factory | Extrapolated Ripper | -6/Factory | Extrapolated Graviton Cannon | -5/Factory | Scanalyzed CPS Tube | -4/Factory | Scanalyzed Smartbomb Launcher | -3/Research | Scanalyzed Adv. Myomer Leg | -3/Quarantine | Reported Com. Battery | -3/Quarantine | Reported Prc. Matter Filter | -3/Quarantine | Reported Exp. Myomer Leg | -3/Quarantine | Reported Enh. Multireflex Exoskeleton | -3/Quarantine | Reported Exp. Thermal Shield | -3/Quarantine | Reported Hvy. Wave Gun | -3/Quarantine | Reported Diametric Drive | -3/Quarantine | Reported Exp. ECM Suite | -3/Quarantine | Reported Adv. Matter Compressor | -3/Quarantine | Reported Enh. Coil Gun | -3/Quarantine | Reported Gravity Neutralizer | -3/Quarantine | Reported Cld. Nuclear Pulse Thruster | -3/Quarantine | Reported Adv. Plasma Rifle | -3/Quarantine | Reported Imp. Matter Compressor | -3/Quarantine | Reported Cld. Antigrav System | -3/Quarantine | Reported Centrium Medium Armor Plating | -3/Quarantine | Reported Hvy. Dispersion Rifle | -3/Quarantine | Reported Graviton Reactor | -3/Quarantine | Reported Exp. Coolant Injector | -3/Quarantine | Reported Imp. Linear Gravjet | -3/Quarantine | Reported Hvy. Antimatter Reactor | -3/Quarantine | Reported Imp. Lightning Gun | -3/Quarantine | Reported Hvy. Disruptor Cannon | -3/Quarantine | Reported Tactical Quantum Warhead | -3/Quarantine | Reported Exp. Field Recycling Unit | -3/Quarantine | Reported Particle Accelerator | -3/Quarantine | Reported Hds. Centrium Wheel | -3/Quarantine | Reported Hvy. Proton Cannon | -3/Quarantine | Reported Plasma Lance | -3/Quarantine | Reported Exp. Target Analyzer | -3/Quarantine | Archive Adv. Remote Shield | -3/Quarantine | Archive Robot Schematics ------------------ M-13 Machinist | -9/Storage | Hacked S-10 Pest | -9/Storage | Hacked K-01 Serf | -3/Quarantine | Archive Fabricated ------------ Deep Structural Scanner | x1 | -6/Factory | Authchip Graviton Cannon | x1 | -4/Factory | Authchip Graviton Cannon | x1 | -4/Factory | Authchip Repaired ---------- Assault Rifle | 15% | -9/Materials Hrd. Light Armor Plating | 27% | -9/Storage Antigrav Array | 19% | -5/Factory | Broken Cld. Aerolev Unit | 31% | -5/Factory Enh. Nova Cannon | 5% | -5/Factory | Corrupted Cld. Aerolev Unit | 35% | -4/Factory CPS Tube | 99% | -4/Factory | Broken Studied --------- Hvy. Assault Rifle | -9/Materials | Hacked Linear Gravjet | -5/Factory | Hacked Cmb. Linear Gravjet | -3/Research | Hacked Com. HERF Cannon | -3/Research | Hacked Antigrav Array | -3/Quarantine | Hacked Biometal Leg | -2/Research | Hacked Myomer Leg | -2/Research | Hacked Alien Tech Used ----------------- Subatomic Replicator Sigix Terminator Achievements -------------- None Challenges ------------ None Game ------ Seed InterceptHardenedExpander Manual? 0 Play Time 10:12:01 Cumulative 1256.7 hours Start 2026.01.14 @ 16:20:19 End 2026.01.16 @ 15:11:40 Sessions 10 Manual Loads 0 Difficulty Rogue Special Mode None Game No. 428 Rogue 423 Adventurer 4 Explorer 1 Win Type - Total 27 Types 14/5/1/2/0/1/1/0/2/1 Lore% 97 Gallery% 96 Achievement% 83 Wizard Run 0 Options --------- Layout 0 ASCII 0 Keyboard 0 Movement Numpad Keybinds 0 Fullscreen 2 Font 18/SmallcapsGlow Map View 76x50 Zoom Use 0% Tactical HUD 1 Map Filters NONE Filters NONE Steam 1 RUN: cf068924-80e3-46bd-bd4a-1a7e03acd249